{"text_format":"1","workbook":"xlsx","n_sheets":34,"sheets":["modProv","Инструкция","Справочная информация","Лог обновления","Титульный","Список СТ (не дифф)","ТС доступ (не дифф)","Список СТ (дифф)","Ссылки на публикации","Комментарии","Проверка","AllSheetsInThisWorkbook","TEHSHEET","et_union_hor","et_union_vert","modInfo","modReestr","modfrmReestr","modUpdTemplMain","REESTR_ORG","modClassifierValidate","modHyp","modList00","modList01","modList02","modList03","modList04","modfrmDateChoose","modComm","modThisWorkbook","REESTR_MO","modfrmReestrMR","modfrmRegion","modfrmCheckUpdates"],"not_rendered":{"charts":0,"images":20,"macros":1,"external_links":0,"defined_names":122,"comments":1,"pivot_tables":0},"unopened":[],"bounds":{"document_bytes":16777216,"sheet_cells":100000,"rows_first":2000,"rows_last":500,"rows_between":2000,"halvings":0,"cell_chars":16384,"cell_head_chars":4096},"cells_cut":0,"cells_raw":0,"read":"whole","date_system":"1900"}

{"sheet":"modProv","index":0,"n_rows":0,"n_cols":0,"rows_kept":0,"cut":false,"hidden":true,"merged":[]}

{"sheet":"Инструкция","index":1,"n_rows":106,"n_cols":27,"rows_kept":106,"cut":false,"hidden":false,"merged":[[72,5,72,20],[72,21,72,23],[86,4,86,6],[86,7,86,23],[87,7,87,23],[75,4,75,23],[76,4,76,23],[83,4,83,7],[80,4,80,23],[82,4,82,23],[81,4,81,23],[83,8,83,23],[101,4,101,23],[79,4,79,23],[103,5,103,18],[105,5,105,23],[60,7,60,23],[84,4,84,6],[84,7,84,23],[85,4,85,6],[85,7,85,23],[77,4,77,23],[69,4,69,23],[78,4,78,23],[70,4,70,23],[71,5,71,23],[73,5,73,23],[74,4,74,23],[57,4,57,6],[57,7,57,23],[58,4,58,6],[58,7,58,23],[59,4,59,6],[59,7,59,23],[45,4,56,23],[22,15,22,22],[1,1,1,6],[2,1,2,2],[4,1,4,24],[6,4,18,23],[20,5,20,12],[20,15,20,23],[21,5,21,12],[21,15,21,23],[34,4,38,23],[39,4,39,23],[40,4,44,23]]}
[null,null,null,null,null,null,null,null,null,null,null,null,null,null,null,null,null,null,null,null,null,null,null,null,null,null," (требуется обновление)"]
[null,{"$f":"\"Код шаблона: \" & GetCode()","v":"Код шаблона: JKH.OPEN.INFO.QUARTER.WARM"}]
[null,{"$f":"\"Версия \" & GetVersion()","v":"Версия 6.0.1"}]
[]
[null,{"$f":"\"Показатели, подлежащие раскрытию в сфере \"&TSphere_full&\" (квартальные)\"","v":"Показатели, подлежащие раскрытию в сфере теплоснабжения и сфере оказания услуг по передаче тепловой энергии (квартальные)"}]
[]
[null,null,null,null,"• На рабочем месте должен быть установлен MS Office 2003 SP3, 2007 SP3, 2010 с полной версией MS Excel\n\n• Макросы во время работы должны быть включены (!)\n\n• Для корректной работы отчёта требуется выбрать низкий уровень безопасности\n(В меню MS Excel 2003: Сервис | Макрос | Безопасность | выбрать пункт «Низкая безопасность» | OK)\n(В меню MS Excel 2007/2010: Параметры Excel | Центр управления безопасностью | Параметры центра управления безопасностью | Параметры макросов | Включить все макросы | ОК)\n\n• Если Вы работаете в табличном процессоре MS Excel 2007 и выше, то можете использовать для работы формат XLSM (Книга Excel с поддержкой макросов). При работе в формате XLSM заметно быстрее происходит сохранение файла, а также уменьшается размер по сравнению с форматом XLS\n\n• Не рекомендуется снимать защиту с листов и каким-либо образом модифицировать защищаемые формулы и расчётные поля, в противном случае, отчёт будет отклонён системой\n\n• При сохранении не следует выбирать формат XLSX (Книга Excel), так как в указанном формате макросы, необходимые для работы отчёта, безвозвратно удаляются"]
[]
[]
[]
[]
[]
[]
[]
[]
[]
[]
[]
[]
[]
[null,null,null,null,"A"," - не обязательные для заполнения",null,null,null,null,null,null,null,null,"A"," - с формулами и константами"]
[null,null,null,null,"A"," - обязательные для заполнения",null,null,null,null,null,null,null,null,"A"," - с выбором значений до двойному клику,"]
[null,null,null,null,null,null,null,null,null,null,null,null,null,null,null,"либо с возможностью выбора даты из календаря или ручного ввода"]
[]
[]
[]
[]
[]
[]
[]
[]
[]
[]
[]
[null,null,null,null,"Если в предложенном Вам списке необходимая организация, МР/МО отсутствуют, обновите реестры с помощью кнопок\n\nВ результате синхронизации с базой данных список организаций (МР/МО) будет заменён актуальным (механизм синхронизации требует подключения к сети Интернет и основан на использовании протокола HTTPS (TCP порт 443))\n\nЕсли после обновления Вам не удалось найти необходимую организацию в списке, обратитесь к ответственному за поддержание реестра Вашего региона. Информация о региональных органах регулирования доступна по ссылке:"]
[]
[]
[]
[]
[null,null,null,null,"http://www.fstrf.ru/regions/region/showlist"]
[]
[]
[]
[]
[]
[null,null,null,null,"• При сохранении шаблона осуществляется проверка корректности данных, в том числе на наличие значений в ячейках, обязательных для заполнения\n\n• Если какая-то ячейка не удовлетворяет условию проверки, на лист «Проверка» добавляется гиперссылка на данную ячейку и указывается причина ошибки\n\n• В колонке «Статус» для каждого сообщения возможны 2 значения: ошибка и предупреждение\n\n• При наличии сообщений со статусом «Ошибка» шаблон будет отклонён системой и не будет загружен в хранилище данных, сообщения со статусом «Предупреждение» носят информационный характер, и такой шаблон будет принят системой"]
[]
[]
[]
[]
[]
[]
[]
[]
[]
[]
[]
[null,null,null,null,"Web-сайт:",null,null,"http://support.eias.ru/index.php?a=add&catid=5"]
[null,null,null,null,"E-mail:",null,null,"openinfo@eias.ru"]
[null,null,null,null,"Дистрибутивы:",null,null,"http://eias.ru/?page=show_distrs"]
[null,null,null,null,null,null,null,"для устранения ошибок (например, \"Compile error in hidden module\")"]
[]
[]
[]
[]
[]
[]
[]
[]
[null,null,null,null,"Законодательная основа шаблона"]
[null,null,null,null,"Данный шаблон разработан в соответствии с:"]
[null,null,null,null," • ","Постановление Правительства РФ от 05.07.2013 N 570 \"О стандартах раскрытия информации теплоснабжающими организациями, теплосетевыми организациями и органами регулирования\""]
[null,null,null,null,null,"Полный текст Постановления N 570"]
[]
[null,null,null,null,"Принципы работы с шаблоном"]
[null,null,null,null,"  Перед началом работы с шаблоном Вам необходимо нажать кнопку \"Приступить к заполнению\", после чего на форме выбора выбрать из выпадающего списка нужный субъект РФ. После выбора субъекта РФ в шаблоне отобразятся листы для заполнения."]
[null,null,null,null,"  На листе «Титульный» нужно заполнить все ячейки голубого цвета."]
[null,null,null,null,"  На листе «Ссылки на публикации» «Адрес сайта в сети интернет» вводите, не нарушая цвет ячейки /если копируете гиперссылку из браузера, то выполните двойной щелчок левой кнопки мыши по ячейке и только после этого можете вставить скопированный элемент/.\n"]
[null,null,null,null,"  При вводе даты на расчетных листах необходимо выбрать дату из календаря (иконка справа от выбранной ячейки), либо ввести дату непосредственно в ячейку в формате - 'ДД.ММ.ГГГГ'."]
[null,null,null,null,"  Если какой-либо из показателей на расчетных листах для Вашей организации отсутствует, введите в поле, обязательное для заполнение, «0» (для числовых показателей) и «-» (для текстовых).\n"]
[null,null,null,null,"  Внимательно следите за информационными сообщениями на расчетных листах."]
[null,null,null,null,"  Все необходимые комментарии по всем формам Вы можете отразить на листе «Комментарии»."]
[null,null,null,null,"  Сопроводительные материалы необходимо загружать с помощью \"ЕИАС Мониторинг\""]
[null,null,null,null,"Инструкция",null,null,null,"http://eias.ru/files/shablon/manual_loading_through_monitoring.pdf"]
[]
[null,null,null,null,"E-mail:",null,null,"openinfo@eias.ru"]
[null,null,null,null,"Web-сайт:",null,null,"http://eias.ru/?page=show_templates"]
[]
[]
[]
[]
[]
[]
[]
[]
[]
[]
[]
[]
[]
[]
[null,null,null,null,"При наличии подключения к Интернет, можно автоматически проверять наличие доступных обновлений. Выберите способ оповещения о наличии обновлений для отчёта:"]
[]
[null,null,null,null,null,"проверять доступные обновления (рекомендуется)",null,null,null,null,null,null,null,null,null,null,null,null,null,null,null,null,null,null,null,null,"y"]
[]
[null,null,null,null,null,"никогда не проверять наличие обновлений (не рекомендуется)"]

{"sheet":"Справочная информация","index":2,"n_rows":127,"n_cols":6,"rows_kept":127,"cut":false,"hidden":true,"merged":[]}
[]
[null,{"$f":"code","v":"Код шаблона: JKH.OPEN.INFO.QUARTER.WARM"}]
[]
[]
[null,null,{"$f":"\"II. Стандарты раскрытия информации в сфере \"& TSphere_full","v":"II. Стандарты раскрытия информации в сфере теплоснабжения и сфере оказания услуг по передаче тепловой энергии"}]
[]
[null,null,"56. Регулируемыми организациями подлежит раскрытию информация:",null,null," "]
[null,null,"а) о регулируемой организации (общая информация);",null,null,"  "]
[null,null,"б) о тарифах на регулируемые товары (услуги);",null,null,"  "]
[null,null,"в) об основных показателях финансово-хозяйственной деятельности регулируемой организации, включая структуру основных производственных затрат (в части регулируемой деятельности);",null,null,"  "]
[null,null,"г) об основных потребительских характеристиках регулируемых товаров и услуг регулируемой организации и их соответствии установленным требованиям;",null,null,"  "]
[null,null,"д) об инвестиционных программах регулируемой организации и отчетах об их реализации;",null,null,"  "]
[null,null,"е) о наличии (отсутствии) технической возможности подключения к централизованной системе горячего водоснабжения, а также о регистрации и ходе реализации заявок о подключении к централизованной системе горячего водоснабжения;",null,null,"  "]
[null,null,"ж) об условиях, на которых осуществляется поставка регулируемых товаров (оказание регулируемых услуг), и (или) об условиях договоров о подключении к централизованной системе горячего водоснабжения;",null,null,"  "]
[null,null,"з) о порядке выполнения технологических, технических и других мероприятий, связанных с подключением к централизованной системе горячего водоснабжения;",null,null,"  "]
[null,null,"и) о способах приобретения товаров, необходимых для производства регулируемых товаров и (или) оказания регулируемых услуг регулируемой организацией;",null,null,"  "]
[null,null,"к) о предложении регулируемой организации об установлении тарифов в сфере горячего водоснабжения.",null,null,"  "]
[]
[null,null,"57. Информация о тарифах на регулируемые товары (услуги) в сфере горячего водоснабжения содержит сведения:",null,null,"  "]
[null,null,"а) об утвержденных тарифах на горячую воду (горячее водоснабжение);",null,null," "]
[null,null,"б) об утвержденных тарифах на транспортировку горячей воды;",null,null,"  "]
[null,null,"в) об утвержденных тарифах на подключение к централизованной системе горячего водоснабжения.",null,null,"  "]
[]
[null,null,"58. В отношении сведений, предусмотренных пунктом 57 настоящего документа, указывается информация:",null,null,"  "]
[null,null,"а) о наименовании органа регулирования, принявшего решение об утверждении тарифов;",null,null,"  "]
[null,null,"б) о реквизитах (дата и номер) такого решения;",null,null,"  "]
[null,null,"в) о величине установленного тарифа;",null,null,"  "]
[null,null,"г) о сроке действия тарифа;",null,null," "]
[null,null,"д) об источнике официального опубликования решения.",null,null,"  "]
[]
[null,null,"59. В рамках общей информации о регулируемой организации раскрытию подлежат следующие сведения:",null,null,"  "]
[null,null,"а) фирменное наименование юридического лица (согласно уставу регулируемой организации), фамилия, имя и отчество руководителя регулируемой организации;",null,null,"  "]
[null,null,"б) основной государственный регистрационный номер, дата его присвоения и наименование органа, принявшего решение о регистрации, в соответствии со свидетельством о государственной регистрации в качестве юридического лица;",null,null,"  "]
[null,null,"в) почтовый адрес, адрес фактического местонахождения органов управления регулируемой организации, контактные телефоны, а также (при наличии) официальный сайт в сети \"Интернет\" и адрес электронной почты;",null,null,"  "]
[null,null,"г) режим работы регулируемой организации (абонентских отделов, сбытовых подразделений), в том числе часы работы диспетчерских служб;",null,null,"  "]
[null,null,"д) вид регулируемой деятельности;",null,null," "]
[null,null,"е) протяженность водопроводных сетей (в однотрубном исчислении) (километров);",null,null,"  "]
[null,null,"ж) количество центральных тепловых пунктов (штук).",null,null,"  "]
[]
[null,null,"60. Информация об основных показателях финансово-хозяйственной деятельности регулируемой организации, включая структуру основных производственных затрат (в части регулируемой деятельности), содержит сведения:",null,null,"  "]
[null,null,"а) о выручке от регулируемой деятельности (тыс. рублей) с разбивкой по видам деятельности;",null,null,"  "]
[null,null,"б) о себестоимости производимых товаров (оказываемых услуг) по регулируемому виду деятельности (тыс. рублей), включая:",null,null,"  "]
[null,null,"- расходы на покупаемую тепловую энергию (мощность), используемую для горячего водоснабжения;",null,null,"  "]
[null,null,"- расходы на тепловую энергию, производимую с применением собственных источников и используемую для горячего водоснабжения;",null,null,"  "]
[null,null,"- расходы на покупаемую холодную воду, используемую для горячего водоснабжения;",null,null,"  "]
[null,null,"- расходы на холодную воду, получаемую с применением собственных источников водозабора (скважин) и используемую для горячего водоснабжения;",null,null,"  "]
[null,null,"- расходы на покупаемую электрическую энергию (мощность), используемую в технологическом процессе (с указанием средневзвешенной стоимости 1 кВт·ч), и объем приобретения электрической энергии;",null,null," "]
[null,null,"- расходы на оплату труда и отчисления на социальные нужды основного производственного персонала;",null,null,"  "]
[null,null,"- расходы на оплату труда и отчисления на социальные нужды административно-управленческого персонала;",null,null,"  "]
[null,null,"- расходы на амортизацию основных производственных средств и аренду имущества, используемого в технологическом процессе;",null,null,"   "]
[null,null,"- общепроизводственные расходы, в том числе расходы на текущий и капитальный ремонт;",null,null,"   "]
[null,null,"- общехозяйственные расходы, в том числе расходы на текущий и капитальный ремонт;",null,null,"   "]
[null,null,"- расходы на капитальный и текущий ремонт основных производственных средств (в том числе информация об объемах товаров и услуг, их стоимости и способах приобретения у тех организаций, сумма оплаты услуг которых превышает 20 процентов суммы расходов по указанной статье расходов);",null,null,"   "]
[null,null,"- расходы на услуги производственного характера, оказываемые по договорам с организациями на проведение регламентных работ в рамках технологического процесса (в том числе информация об объемах товаров и услуг, их стоимости и способах приобретения у тех организаций, сумма оплаты услуг которых превышает 20 процентов суммы расходов по указанной статье расходов);",null,null,"   "]
[null,null,"- прочие расходы, которые отнесены на регулируемые виды деятельности, в соответствии с основами ценообразования в сфере водоснабжения и водоотведения, утверждаемыми Правительством Российской Федерации;",null,null,"   "]
[null,null,"в) о чистой прибыли, полученной от регулируемого вида деятельности, с указанием размера ее расходования на финансирование мероприятий, предусмотренных инвестиционной программой регулируемой организации (тыс. рублей);",null,null,"   "]
[null,null,"г) об изменении стоимости основных фондов (в том числе за счет ввода в эксплуатацию (вывода из эксплуатации)), их переоценки (тыс. рублей);",null,null,"   "]
[null,null,"д) о валовой прибыли от продажи товаров и услуг по регулируемому виду деятельности (тыс. рублей);",null,null,"   "]
[null,null,"е) о годовой бухгалтерской отчетности, включая бухгалтерский баланс и приложения к нему (раскрывается регулируемой организацией, выручка от регулируемой деятельности которой превышает 80 процентов совокупной выручки за отчетный год);",null,null,"   "]
[null,null,"ж) об объеме покупаемой холодной воды, используемой для горячего водоснабжения (тыс. куб. метров);",null,null,"   "]
[null,null,"з) об объеме холодной воды, получаемой с применением собственных источников водозабора (скважин) и используемой для горячего водоснабжения;",null,null,"   "]
[null,null,"и) об объеме покупаемой тепловой энергии (мощности), используемой для горячего водоснабжения (тыс. Гкал (Гкал/ч));",null,null,"  "]
[null,null,"к) об объеме тепловой энергии, производимой с применением собственных источников и используемой для горячего водоснабжения (тыс. Гкал);",null,null,"  "]
[null,null,"л) о потерях воды в сетях (процентов);",null,null,"  "]
[null,null,"м) о среднесписочной численности основного производственного персонала (человек);",null,null,"  "]
[null,null,"н) об удельном расходе электроэнергии на подачу воды в сеть (тыс. кВт·ч или тыс. куб. метров).",null,null,"  "]
[null,null,"61. Информация об основных потребительских характеристиках регулируемых товаров и услуг регулируемой организации и их соответствии установленным требованиям содержит сведения:",null,null,"  "]
[null,null,"а) о количестве аварий на системах горячего водоснабжения (единиц на километр);",null,null,"  "]
[null,null,"б) о количестве часов (суммарно за календарный год), превышающих допустимую продолжительность перерыва подачи горячей воды, и доле потребителей, затронутых ограничениями подачи горячей воды;",null,null,"  "]
[null,null,"в) о количестве часов (суммарно за календарный год) отклонения от нормативной температуры горячей воды в точке разбора;",null,null,"  "]
[null,null,"г) о соответствии состава и свойств горячей воды установленным санитарным нормам и правилам;",null,null,"  "]
[null,null,"д) о доле исполненных в срок договоров о подключении (процент общего количества заключенных договоров о подключении);",null,null,"  "]
[null,null,"е) о средней продолжительности рассмотрения заявлений о подключении (дней).",null,null,"  "]
[]
[null,null,"62. Информация об инвестиционных программах регулируемой организации содержит сведения:",null,null,"  "]
[null,null,"а) о наименовании, дате утверждения и цели инвестиционной программы;",null,null,"  "]
[null,null,"б) о наименовании органа исполнительной власти субъекта Российской Федерации, утвердившего инвестиционную программу, и наименовании органа местного самоуправления, согласовавшего инвестиционную программу;",null,null," "]
[null,null,"в) о сроках начала и окончания реализации инвестиционной программы;",null,null,"  "]
[null,null,"г) о потребностях в финансовых средствах, необходимых для реализации инвестиционной программы, в том числе с разбивкой по годам, мероприятиям и источникам финансирования инвестиционной программы (тыс. рублей);",null,null,"  "]
[null,null,"д) о плановых значениях целевых показателей инвестиционной программы (с разбивкой по мероприятиям);",null,null,"  "]
[null,null,"е) о фактических значениях целевых показателей инвестиционной программы (с разбивкой по мероприятиям);",null,null,"   "]
[null,null,"ж) об использовании инвестиционных средств за отчетный год с разбивкой по кварталам, мероприятиям и источникам финансирования инвестиционной программы (тыс. рублей);",null,null,"   "]
[null,null,"з) о внесении изменений в инвестиционную программу.",null,null,"   "]
[]
[null,null,"63. Информация о наличии (отсутствии) технической возможности подключения к централизованной системе горячего водоснабжения, а также о регистрации и ходе реализации заявок о подключении к централизованной системе горячего водоснабжения содержит сведения:",null,null,"   "]
[null,null,"а) о количестве поданных заявок о подключении к централизованной системе горячего водоснабжения в течение квартала;",null,null,"   "]
[null,null,"б) о количестве исполненных заявок о подключении к централизованной системе горячего водоснабжения в течение квартала;",null,null,"  "]
[null,null,"в) о количестве заявок о подключении к централизованной системе горячего водоснабжения, по которым принято решение об отказе в подключении (с указанием причин), в течение квартала;",null,null,"   "]
[null,null,"г) о резерве мощности централизованной системы горячего водоснабжения в течение квартала.",null,null,"   "]
[]
[null,null,"64. При использовании регулируемой организацией нескольких централизованных систем горячего водоснабжения информация о резерве мощности таких систем публикуется в отношении каждой централизованной системы горячего водоснабжения.",null,null,"   "]
[]
[null,null,"65. Информация об условиях, на которых осуществляется поставка регулируемых товаров и (или) оказание регулируемых услуг, содержит сведения об условиях публичных договоров поставок регулируемых товаров, оказания регулируемых услуг, в том числе договоров о подключении к централизованной системе горячего водоснабжения.",null,null,"   "]
[]
[null,null,"66. Информация о порядке выполнения технологических, технических и других мероприятий, связанных с подключением к централизованной системе горячего водоснабжения, содержит:",null,null,"   "]
[null,null,"а) форму заявки о подключении к централизованной системе горячего водоснабжения;",null,null,"  "]
[null,null,"б) перечень документов, представляемых одновременно с заявкой о подключении к централизованной системе горячего водоснабжения;",null,null,"  "]
[null,null,"в) реквизиты нормативного правового акта, регламентирующего порядок действий заявителя и регулируемой организации при подаче, приеме, обработке заявки о подключении к централизованной системе горячего водоснабжения, принятии решения и уведомлении о принятом решении;",null,null,"  "]
[null,null,"г) телефоны и адреса службы, ответственной за прием и обработку заявок о подключении к централизованной системе горячего водоснабжения.",null,null," "]
[]
[null,null,"67. Информация о способах приобретения, стоимости и объемах товаров, необходимых для производства регулируемых товаров и (или) оказания регулируемых услуг регулируемой организацией, содержит сведения о правовых актах, регламентирующих правила закупки (положение о закупках) в регулируемой организации, а также о месте размещения положения о закупках регулируемой организации и о планировании конкурсных процедур и результатах их проведения.",null,null,"  "]
[]
[null,null,"68. Информация о предложении регулируемой организации об установлении тарифов в сфере горячего водоснабжения на очередной период регулирования содержит копию утвержденной в установленном порядке инвестиционной программы (проекта инвестиционной программы), а также сведения:",null,null,"  "]
[null,null,"а) о предлагаемом методе регулирования;",null,null,"  "]
[null,null,"б) о расчетной величине тарифов;",null,null,"  "]
[null,null,"в) о периоде действия тарифов;",null,null,"  "]
[null,null,"г) о долгосрочных параметрах регулирования (в случае если их установление предусмотрено выбранным методом регулирования);",null,null,"  "]
[null,null,"д) о необходимой валовой выручке на соответствующий период, в том числе с разбивкой по годам;",null,null,"  "]
[null,null,"е) о годовом объеме отпущенной в сеть воды;",null,null,"  "]
[null,null,"ж) о размере недополученных доходов регулируемой организацией (при их наличии), исчисленном в соответствии с основами ценообразования в сфере водоснабжения и водоотведения, утверждаемыми Правительством Российской Федерации;",null,null,"  "]
[null,null,"з) о размере экономически обоснованных расходов, не учтенных при регулировании тарифов в предыдущий период регулирования (при их наличии), определенном в соответствии с основами ценообразования в сфере водоснабжения и водоотведения, утверждаемыми Правительством Российской Федерации.",null,null," "]
[]
[null,null,"69. Информация, указанная в пунктах 57, 65 и 66 настоящего документа, раскрывается регулируемой организацией не позднее 30 календарных дней со дня принятия решения об установлении тарифа на очередной период регулирования.",null,null,"  "]
[]
[null,null,"70. Информация, указанная в пунктах 60 - 62 настоящего документа, раскрывается регулируемой организацией не позднее 30 календарных дней со дня сдачи годового бухгалтерского баланса в налоговые органы, за исключением информации, указанной в подпункте \"з\" пункта 62 настоящего документа.",null,null,"  "]
[]
[null,null,"71. Информация, указанная в пункте 60 настоящего документа, должна соответствовать бухгалтерской отчетности за отчетный год.",null,null,"  "]
[]
[null,null,"72. Регулируемые организации, не осуществляющие сдачу годового бухгалтерского баланса в налоговые органы, информацию, указанную в пунктах 60 - 62 настоящего документа, за исключением информации, указанной в подпункте \"з\" пункта 62 настоящего документа, раскрывают не позднее 30 календарных дней со дня истечения срока, установленного законодательством Российской Федерации для сдачи годового бухгалтерского баланса в налоговые органы, за исключением информации, указанной в подпункте \"з\" пункта 62 настоящего документа.",null,null,"  "]
[]
[null,null,"73. Информация, указанная в подпункте \"з\" пункта 62 настоящего документа, раскрывается в течение 10 календарных дней со дня принятия органом исполнительной власти субъекта Российской Федерации решения о внесении изменений в инвестиционную программу.",null,null,"  "]
[]
[null,null,"74. Информация, указанная в пункте 63 настоящего документа, раскрывается регулируемой организацией ежеквартально, в течение 30 календарных дней по истечении квартала, за который раскрывается информация.",null,null," "]
[]
[null,null,"75. Информация, указанная в пунктах 67 и 68 настоящего документа, раскрывается регулируемой организацией в течение 10 календарных дней со дня подачи ею заявления об установлении тарифов в сфере горячего водоснабжения в орган исполнительной власти субъекта Российской Федерации в области государственного регулирования тарифов (орган местного самоуправления).",null,null,"  "]
[]
[null,null,"76. Информация, указанная в пункте 59 настоящего документа, подлежит раскрытию в течение месяца со дня вступления в силу настоящего документа.",null,null," "]

{"sheet":"Лог обновления","index":3,"n_rows":10,"n_cols":3,"rows_kept":10,"cut":false,"hidden":true,"merged":[]}
["Дата/Время","Сообщение","Статус"]
[]
["2014-01-15T10:38:37","Проверка доступных обновлений...","Информация"]
["2014-01-15T10:38:37","Версия шаблона 6.0.1 актуальна, обновление не требуется","Информация"]
["2016-09-29T11:51:39","Проверка доступных обновлений...","Информация"]
["2016-09-29T11:51:39","Версия шаблона 6.0.1 актуальна, обновление не требуется","Информация"]
["2016-09-29T17:38:28","Проверка доступных обновлений...","Информация"]
["2016-09-29T17:38:28","Версия шаблона 6.0.1 актуальна, обновление не требуется","Информация"]
["2016-10-27T11:53:00","Проверка доступных обновлений...","Информация"]
["2016-10-27T11:53:01","Версия шаблона 6.0.1 актуальна, обновление не требуется","Информация"]

{"sheet":"Титульный","index":4,"n_rows":47,"n_cols":6,"rows_kept":47,"cut":false,"hidden":false,"merged":[[4,4,4,5]]}
[null,null,null,null,null,26483228]
[]
[]
[null,null,null,null,null,{"$f":"version","v":"Версия 6.0.1"}]
[null,null,null,null,"Информация о наличии (отсутствии) технической возможности подключения (технологического присоединения) к системе теплоснабжения, а также о ходе реализации заявок на подключение (технологическое присоединение) к системе теплоснабжения"]
[]
[null,null,null,null,"Субъект РФ","Ярославская область"]
[]
[null,null,null,null,"Публикация","На сайте регулирующего органа"]
[]
[null,null,null,null,"По желанию организации информация раскрыта в дополнительных источниках публикации?","да"]
[]
[null,null,null,null,"Тариф установлен дифференцированно по системам теплоснабжения?","нет"]
[]
[null,null,null,null,"Идентификатор тарифа"]
[null,null,null,null,"Описание тарифа"]
[]
[null,null,null,null,null,"Отчётный период"]
[null,null,null,null,"Квартал","III квартал"]
[null,null,null,null,"Год",2016]
[]
[null,null,null,null,"Является ли данное юридическое лицо подразделением (филиалом) другой организации","нет"]
[]
[null,null,null,null,"Наименование организации","МУП \"Яргорэнергосбыт\" г. Ярославля"]
[null,null,null,null,"Наименование филиала"]
[null,null,null,null,"ИНН","7604088265"]
[null,null,null,null,"КПП","760301001"]
[]
[null,null,null,null,"Вид деятельности","производство (некомбинированная выработка)+передача+сбыт"]
[]
[null,null,null,null,null,"Адрес регулируемой организации"]
[null,null,null,null,"Юридический адрес","150055, г.Ярославль, ул.Красноборская, д.5, корп.1"]
[null,null,null,null,"Почтовый адрес","150055, г.Ярославль, ул.Красноборская, д.5, корп.1"]
[]
[null,null,null,null,null,"Руководитель"]
[null,null,null,null,"Фамилия, имя, отчество","Зарубин Сергей Николаевич"]
[null,null,null,null,"(код) номер телефона","(4852) 35-14-40"]
[]
[null,null,null,null,null,"Главный бухгалтер"]
[null,null,null,null,"Фамилия, имя, отчество","Березина Алевтина Сергеевна"]
[null,null,null,null,"(код) номер телефона","(4852) 36-00-47"]
[]
[null,null,null,null,null,"Должностное лицо, ответственное за составление формы"]
[null,null,null,null,"Фамилия, имя, отчество","Кучина Ирина Борисовна"]
[null,null,null,null,"Должность","Заместитель директора по экономике, финансам и корпоративному развитию"]
[null,null,null,null,"(код) номер телефона","(4852) 67-05-85"]
[null,null,null,null,"e-mail","kib@ensbit.com"]

{"sheet":"Список СТ (не дифф)","index":5,"n_rows":21,"n_cols":14,"rows_kept":21,"cut":false,"hidden":false,"merged":[[20,4,20,12],[3,3,3,8],[4,3,4,8],[9,3,17,3],[9,4,17,4],[9,6,16,6],[9,7,16,7],[9,8,16,8],[9,9,16,9],[16,11,16,12]]}
[]
[]
[]
[null,null,null,"Система теплоснабжения (одна или несколько), в отношении которой(-ых) установлен единый тариф"]
[null,null,null,{"$f":"IF(org=0,\"Не определено\",org)","v":"МУП \"Яргорэнергосбыт\" г. Ярославля"}]
[]
[null,null,null,"№ п/п","Муниципальный район",null,"№ п/п","Муниципальное образование","ОКТМО","Количество котельных и ЦТП по данному МО","№ п/п","Наименование системы теплоснабжения*","Резерв мощности системы теплоснабжения в течение квартала, Гкал/час"]
[null,null,null,"1","2",null,"3","4","5","6","6","7","8"]
[]
[null,null,"О",1,"город Ярославль",null,1,"город Ярославль","78701000",null,"1","ЕТО-1",0]
[null,null,null,null,null,null,null,null,null,null,"2","ЕТО-2",0,"О"]
[null,null,null,null,null,null,null,null,null,null,"3","ООО \"ТЕПЛОВАЯ  ЭНЕРГЕТИЧЕСКАЯ КОМПАНИЯ-1\" ",0,"О"]
[null,null,null,null,null,null,null,null,null,null,"4","ООО \"Спецторг Плюс\"",0,"О"]
[null,null,null,null,null,null,null,null,null,null,"5","ООО \"УПТК \"Топливоподающие системы\"",0,"О"]
[null,null,null,null,null,null,null,null,null,null,"6","ООО \"Газпром теплоэнерго Ярославль\"",0,"О"]
[null,null,null,null,null,null,null,null,null,null,"7","ООО \"ТехЭкспо\"",0,"О"]
[null,null,null,null,null,null,null,null,null,null,null,"Добавить систему теплоснабжения"]
[null,null,null,null,null,null,null,"Добавить МО"]
[null,null,null,null,"Добавить МР"]
[]
[null,null,null,"*","Наименование системы теплоснабжения может формироваться из наименования котельной (котельных), или наименования организации-поставщика (в случае, если используется покупная тепловая энергия для передачи)."]

{"sheet":"ТС доступ (не дифф)","index":6,"n_rows":18,"n_cols":6,"rows_kept":18,"cut":false,"hidden":false,"merged":[[13,4,13,5],[6,4,6,5],[3,4,3,5],[17,4,17,5],[4,3,4,5],[5,3,5,5]]}
[]
[]
[]
[]
[null,null,null,"Информация о наличии (отсутствии) технической возможности подключения (технологического присоединения)*"]
[null,null,null,{"$f":"IF(org=0,\"Не определено\",org)","v":"МУП \"Яргорэнергосбыт\" г. Ярославля"}]
[]
[null,null,null,"№ п/п","Наименование показателя","Значение"]
[null,null,null,"А","1","2"]
[null,null,null,"1","Количество поданных заявок на подключение (технологическое присоединение) к системе теплоснабжения в течение квартала, шт.",12]
[null,null,null,"2","Количество исполненных заявок на подключение (технологическое присоединение) к системе теплоснабжения в течение квартала, шт.",10]
[null,null,null,"3","Количество заявок на подключение (технологическое присоединение) к системе  теплоснабжения, по которым принято решение об отказе  в подключении (технологическом присоединении) в течение квартала, шт.",0]
[null,null,null,"4","Причины отказа в подключении"]
[null,null,null,"4.0"]
[null,null,null,null,"Добавить причину"]
[null,null,null,"5","Справочно: количество выданных техусловий на подключение (технологическое присоединение), шт."]
[]
[null,null,null,"*","Информация раскрывается ежеквартально, в течение 30 календарных дней по истечении квартала, за который раскрывается информация."]

{"sheet":"Список СТ (дифф)","index":7,"n_rows":13,"n_cols":19,"rows_kept":13,"cut":false,"hidden":true,"merged":[[3,3,3,8],[4,3,4,8],[11,4,11,18],[12,4,12,18]]}
[]
[]
[]
[null,null,null,"Система теплоснабжения (одна или несколько), в отношении которой(-ых) установлен единый тариф*"]
[null,null,null,{"$f":"IF(org=0,\"Не определено\",org)","v":"МУП \"Яргорэнергосбыт\" г. Ярославля"}]
[]
[null,null,null,"№ п/п","Муниципальный район",null,"№ п/п","Муниципальное образование","ОКТМО","Количество котельных и ЦТП по данному МО",null,"№ п/п","Наименование системы теплоснабжения**","Резерв мощности системы теплоснабжения в течение квартала, Гкал/час","Количество поданных заявок, шт.","Количество исполненных заявок, шт.","Количество заявок с решением об отказе  в подключении, шт.","№ п/п","Причины отказа в подключении"]
[null,null,null,"1","2",null,"3","4","5","6",null,"6","7","8","9","10","11","12","13"]
[]
[null,null,null,null,"Добавить МР"]
[]
[null,null,null,"*","В случае если регулируемыми организациями оказываются услуги по нескольким технологически не связанным между собой системам теплоснабжения, и если в отношении указанных систем устанавливаются различные тарифы в сфере теплоснабжения, то информация раскрывается отдельно по каждой системе теплоснабжения (для каждого такого тарифа нужно заполнять новый шаблон)."]
[null,null,null,"**","Наименование системы теплоснабжения может формироваться из наименования котельной (котельных), или наименования организации-поставщика ( в случае, если используется покупная тепловая энергия для передачи)."]

{"sheet":"Ссылки на публикации","index":8,"n_rows":13,"n_cols":8,"rows_kept":13,"cut":false,"hidden":false,"merged":[[5,3,5,6],[10,0,11,0],[4,3,4,6],[10,4,10,7]]}
[]
[]
[]
[]
[null,null,null,"Ссылки на публикации\n(указание на официальное печатное издание и (или) адрес сайта в сети Интернет, которые используются для размещения раскрываемой информации)"]
[null,null,null,{"$f":"IF(org=0,\"Не определено\",org)","v":"МУП \"Яргорэнергосбыт\" г. Ярославля"}]
[]
[]
[null,null,null,"№ п/п","Содержание","Наименование источника\n(сайта или печатного издания)","Дата размещения информации","Адрес сайта в сети Интернет"]
[null,null,null,"1","2","3","4","8"]
["1",null,null,{"$f":"A11","v":"1"},{"$f":"\"Информация о наличии (отсутствии) технической возможности подключения (технологического присоединения) к системе \"& TSphere_full&\", а также о регистрации и ходе реализации заявок на подключение (технологическое присоединение) к системе \"& TSphere_full & \"(пункт 22 Постановление Правительства РФ от 05.07.2013 N 570 \"\"О стандартах раскрытия информации теплоснабжающими организациями, теплосетевыми организациями и органами регулирования\"\")\"","v":"Информация о наличии (отсутствии) технической возможности подключения (технологического присоединения) к системе теплоснабжения и сфере оказания услуг по передаче тепловой энергии, а также о регистрации и ходе реализации заявок на подключение (технологическое присоединение) к системе теплоснабжения и сфере оказания услуг по передаче тепловой энергии(пункт 22 Постановление Правительства РФ от 05.07.2013 N 570 \"О стандартах раскрытия информации теплоснабжающими организациями, теплосетевыми организациями и органами регулирования\")"}]
[null,null,null,{"$f":"A11&\".1\"","v":"1.1"},"Сайт организации в сети Интернет","Официальный сайт МУП \"Яргорэнергосбыт\" г. Ярославля","29.09.2016","www.ensbit.com"]
[null,null,null,null,"Добавить"]

{"sheet":"Комментарии","index":9,"n_rows":13,"n_cols":5,"rows_kept":13,"cut":false,"hidden":false,"merged":[[6,3,6,4],[7,3,7,4]]}
[]
[]
[]
[]
[]
[]
[null,null,null,"Комментарии"]
[null,null,null,{"$f":"IF(org=0,\"Не определено\",org)","v":"МУП \"Яргорэнергосбыт\" г. Ярославля"}]
[]
[null,null,null,"№ п/п","Комментарий"]
[null,null,null,"1","2"]
[null,null,null,0]
[null,null,null,null,"Добавить"]

{"sheet":"Проверка","index":10,"n_rows":4,"n_cols":4,"rows_kept":4,"cut":false,"hidden":false,"merged":[[1,1,1,3]]}
[]
[null,"Результат проверки"]
[]
[null,"Ссылка","Причина","Статус"]

{"sheet":"AllSheetsInThisWorkbook","index":11,"n_rows":25,"n_cols":2,"rows_kept":25,"cut":false,"hidden":true,"merged":[]}
["Расчетные листы","Скрытые листы"]
["Инструкция","AllSheetsInThisWorkbook"]
["Справочная информация","TEHSHEET"]
["Лог обновления","et_union_hor"]
["Титульный","et_union_vert"]
["Список СТ (не дифф)","modInfo"]
["ТС доступ (не дифф)","modReestr"]
["Список СТ (дифф)","modfrmReestr"]
["Ссылки на публикации","modUpdTemplMain"]
["Комментарии","REESTR_ORG"]
["Проверка","modClassifierValidate"]
[null,"modProv"]
[null,"modHyp"]
[null,"modList00"]
[null,"modList01"]
[null,"modList02"]
[null,"modList03"]
[null,"modList04"]
[null,"modfrmDateChoose"]
[null,"modComm"]
[null,"modThisWorkbook"]
[null,"REESTR_MO"]
[null,"modfrmReestrMR"]
[null,"modfrmRegion"]
[null,"modfrmCheckUpdates"]

{"sheet":"TEHSHEET","index":12,"n_rows":85,"n_cols":13,"rows_kept":85,"cut":false,"hidden":true,"merged":[]}
["REGION",null,"year_list","logical","Месяц\n(MONTH)","Квартал\n(QUARTER)","Месяц\n(kind_of_publication)","НДС\n/kind_of_NDS/","Номер СЦХВ(СЦВО)\n/SKI_number/","Единица измерения объема оказываемых услуг ГВС\n/kind_of_unit_GVS/",null,"версия шаблона\n (DocProp_Version)","6.0"]
["Алтайский край",null,2013,"да","январь","I квартал","На официальном сайте организации","общий","1","тыс.куб.м/сутки",null,"код шаблона\n(DocProp_TemplateCode)","JKH.OPEN.INFO.QUARTER.WARM"]
["Амурская область",null,2014,"нет","февраль","II квартал","На сайте регулирующего органа","общий с учетом освобождения от уплаты НДС","2","Гкал/час",null,"сфера\n(TSphere)","ТС"]
["Архангельская область",null,2015,null,"март","III квартал",null,"специальный (упрощенная система налогообложения, система налогообложения для сельскохозяйственных товаропроизводителей)","3","куб.м/час",null,"сфера(латиница)\n(TSphere_trans)","WARM"]
["Астраханская область",null,2016,null,"апрель","IV квартал",null,null,"4",null,null,"сфера расширено\n(TSphere_full)","теплоснабжения и сфере оказания услуг по передаче тепловой энергии"]
["Белгородская область",null,2017,null,"май",null,null,null,"5"]
["Брянская область",null,null,null,"июнь",null,null,null,"6"]
["Владимирская область",null,null,null,"июль",null,null,null,"7"]
["Волгоградская область",null,null,null,"август",null,null,null,"8"]
["Вологодская область",null,null,null,"сентябрь",null,null,null,"9"]
["Воронежская область",null,null,null,"октябрь",null,null,null,"10"]
["г.Байконур",null,null,null,"ноябрь",null,null,null,"11"]
["г. Москва",null,null,null,"декабрь",null,null,null,"12"]
["г.Санкт-Петербург",null,null,null,null,null,null,null,"13"]
["Еврейская автономная область",null,null,null,null,null,null,null,"14"]
["Забайкальский край",null,null,null,null,null,null,null,"15"]
["Ивановская область",null,null,null,null,null,null,null,"16"]
["Иркутская область",null,null,null,null,null,null,null,"17"]
["Кабардино-Балкарская республика",null,null,null,null,null,null,null,"18"]
["Калининградская область",null,null,null,null,null,null,null,"19"]
["Калужская область",null,null,null,null,null,null,null,"20"]
["Камчатский край"]
["Карачаево-Черкесская республика"]
["Кемеровская область"]
["Кировская область"]
["Костромская область"]
["Краснодарский край"]
["Красноярский край"]
["Курганская область"]
["Курская область"]
["Ленинградская область"]
["Липецкая область"]
["Магаданская область"]
["Московская область"]
["Мурманская область"]
["Ненецкий автономный округ"]
["Нижегородская область"]
["Новгородская область"]
["Новосибирская область"]
["Омская область"]
["Оренбургская область"]
["Орловская область"]
["Пензенская область"]
["Пермский край"]
["Приморский край"]
["Псковская область"]
["Республика Адыгея"]
["Республика Алтай"]
["Республика Башкортостан"]
["Республика Бурятия"]
["Республика Дагестан"]
["Республика Ингушетия"]
["Республика Калмыкия"]
["Республика Карелия"]
["Республика Коми"]
["Республика Марий Эл"]
["Республика Мордовия"]
["Республика Саха (Якутия)"]
["Республика Северная Осетия-Алания"]
["Республика Татарстан"]
["Республика Тыва"]
["Республика Хакасия"]
["Ростовская область"]
["Рязанская область"]
["Самарская область"]
["Саратовская область"]
["Сахалинская область"]
["Свердловская область"]
["Смоленская область"]
["Ставропольский край"]
["Тамбовская область"]
["Тверская область"]
["Томская область"]
["Тульская область"]
["Тюменская область"]
["Удмуртская республика"]
["Ульяновская область"]
["Хабаровский край"]
["Ханты-Мансийский автономный округ"]
["Челябинская область"]
["Чеченская республика"]
["Чувашская республика"]
["Чукотский автономный округ"]
["Ямало-Ненецкий автономный округ"]
["Ярославская область"]

{"sheet":"et_union_hor","index":13,"n_rows":35,"n_cols":19,"rows_kept":35,"cut":false,"hidden":true,"merged":[[16,0,17,0],[3,4,5,4],[3,3,5,3],[23,4,23,5],[3,6,4,6],[3,7,4,7],[4,11,4,12],[31,3,34,3],[31,4,34,4],[31,6,33,6],[31,7,33,7],[31,8,33,8],[31,9,33,9],[31,11,32,11],[3,8,4,8],[3,9,4,9],[31,12,32,12],[31,13,32,13],[31,14,32,14],[31,15,32,15],[31,16,32,16],[16,4,16,7]]}
[]
["et_List01_1","et_List01_2","et_List01_3"]
[]
[null,null,null,1,null,null,1,null,null,null,"1"]
[null,null,null,null,null,null,null,null,null,null,null,"Добавить систему теплоснабжения"]
[null,null,null,null,null,null,null,"Добавить МО"]
[]
[]
["et_Comm"]
[]
[]
[]
[]
["et_List03"]
[]
[]
[null,null,null,{"$f":"A17","v":0}]
[null,null,null,{"$f":"A17&\".1\"","v":".1"},"Сайт организации в сети Интернет"]
[]
[]
[]
["et_List02_1"]
[]
[]
[]
["et_List02_2"]
[]
[]
[]
["et_List04_1","et_List04_2","et_List04_3"]
[]
[null,null,null,1,null,null,1,null,null,null,null,"1",null,null,null,null,null,"1"]
[null,null,null,null,null,null,null,null,null,null,null,null,null,null,null,null,null,null,"Добавить причину"]
[null,null,null,null,null,null,null,null,null,null,null,null,"Добавить систему теплоснабжения"]
[null,null,null,null,null,null,null,"Добавить МО"]

{"sheet":"et_union_vert","index":14,"n_rows":0,"n_cols":0,"rows_kept":0,"cut":false,"hidden":true,"merged":[]}

{"sheet":"modInfo","index":15,"n_rows":18,"n_cols":2,"rows_kept":18,"cut":false,"hidden":true,"merged":[]}
[null,"Титульный"]
[null,"Для выбора того или иного источника публикации выполните двойной щелчок по синей ячейке напротив соответствующего источника.\nВНИМАНИЕ! Если Вы снимаете галочку с пункта, то будут скрыты и очищены соответствующие строки на листе \"Ссылки на публикации\"!\n\nОпубликование перечисленных в шаблоне показателей на сайте организации в сети Интернет и в печатных изданиях не обязательно, если  данный шаблон предоставлен по системе ЕИАС (региональный сегмент)."]
[null,"Обязательное опубликование на официальном сайте органа исполнительной власти субъекта Российской Федерации в области государственного регулирования цен (тарифов), и (или) на официальном сайте органа местного самоуправления поселения или городского округа в случае их наделения в соответствии с законом субъекта Российской Федерации полномочиями по государственному регулированию цен (тарифов) предусмотрено пунктом 3 (а) постановления Правительства N 570 от 05.07.2013"]
[null,"Задайте период регулирования, выбрав квартал и год из соответствующих списков"]
[null,"Шаблон заполняется раздельно по каждому виду тарифа"]
[null,"Укажите произвольный номер идентификатора тарифа для систем теплоснабжения, которые включены в шаблон. В каждом последующем шаблоне за один отчетный период следует указывать различные идентификаторы тарифа"]
[null,{"$f":"IF(region_name=\"Ханты-Мансийский автономный округ\",\"Принадлежность к соответствующей системе теплоснабжения\",\"Кратко охарактеризуйте тариф, в отношении которого заполняете шаблон\")","v":"Кратко охарактеризуйте тариф, в отношении которого заполняете шаблон"}]
[null,"Ссылки на публикации"]
[null,"Вводите адрес сайта, не нарушая цвет ячейки /если копируете гиперссылку из браузера, то выполните двойной щелчок по ячейке и только после этого можете вставить скопированный элемент/"]
[null,"Сопроводительные материалы необходимо загружать с помощью \"ЕИАС Мониторинг\". Ссылка на инструкцию по загрузке сопроводительных материалов расположена на листе 'Инструкция' в п.'Методология заполнения'"]
[null,"Если для какого-либо пункта графы 'Наименование источника (сайта или печатного издания)' информация не раскрывалась, то в соответствующем поле укажите - 'не раскрывалась'"]
[null,"Список СТ (не дифф)"]
[null,{"$f":"\"В случае, если тариф не дифференцируется по централизованным системам холодного водоснабжения, перечислите все муниципальные районы, в которых организация осуществляет услуги \"&TSphere_full","v":"В случае, если тариф не дифференцируется по централизованным системам холодного водоснабжения, перечислите все муниципальные районы, в которых организация осуществляет услуги теплоснабжения и сфере оказания услуг по передаче тепловой энергии"}]
[null,{"$f":"\"В случае, если тариф не дифференцируется по централизованным системам холодного водоснабжения, перечислите все муниципальные образования, в которых организация осуществляет услуги \"&TSphere_full","v":"В случае, если тариф не дифференцируется по централизованным системам холодного водоснабжения, перечислите все муниципальные образования, в которых организация осуществляет услуги теплоснабжения и сфере оказания услуг по передаче тепловой энергии"}]
[null,"Система теплоснабжения - совокупность источников тепловой энергии и теплопотребляющих установок, технологически соединенных тепловыми сетями (190 ФЗ от 27.07.2010, ст.2, пункт 14)"]
[null,{"$f":"\"В случае, если тариф не дифференцируется по централизованным системам \"&TSphere_full&\", укажите '1'. Выберите значение из списка, указав очередной условный порядковый номер централизованной системы \"&TSphere_full","v":"В случае, если тариф не дифференцируется по централизованным системам теплоснабжения и сфере оказания услуг по передаче тепловой энергии, укажите '1'. Выберите значение из списка, указав очередной условный порядковый номер централизованной системы теплоснабжения и сфере оказания услуг по передаче тепловой энергии"}]
[null,"Стандарты"]
[null,"В качестве примечания Вы можете указать единицу измерения"]

{"sheet":"modReestr","index":16,"n_rows":0,"n_cols":0,"rows_kept":0,"cut":false,"hidden":true,"merged":[]}

{"sheet":"modfrmReestr","index":17,"n_rows":0,"n_cols":0,"rows_kept":0,"cut":false,"hidden":true,"merged":[]}

{"sheet":"modUpdTemplMain","index":18,"n_rows":0,"n_cols":0,"rows_kept":0,"cut":false,"hidden":true,"merged":[]}

{"sheet":"REESTR_ORG","index":19,"n_rows":508,"n_cols":12,"rows_kept":508,"cut":false,"hidden":true,"merged":[]}
["№","NSRF","MR_NAME","OKTMO_MR_NAME","MO_NAME","OKTMO_NAME","RST_ORG_ID","ORG_NAME","INN_NAME","KPP_NAME","VDET_NAME"]
[1,"Ярославская область","Большесельский муниципальный район","78603000","Благовещенское сельское поселение","78603411","26901857","АО \"РЭУ\"","7714783092","332743001","производство (некомбинированная выработка)+передача+сбыт","WARM"]
[2,"Ярославская область","Большесельский муниципальный район","78603000","Большесельский муниципальный район","78603000","26560525","АО \"ГУ ЖКХ\"","5116000922","511601001","Передача","WARM"]
[3,"Ярославская область","Большесельский муниципальный район","78603000","Большесельский муниципальный район","78603000","26901857","АО \"РЭУ\"","7714783092","332743001","производство (некомбинированная выработка)+передача+сбыт","WARM"]
[4,"Ярославская область","Большесельский муниципальный район","78603000","Большесельский муниципальный район","78603000","26483498","ГУП ЖКХ ЯО \"Яркоммунсервис\"","7604004508","760401001","производство (некомбинированная выработка)+передача+сбыт","WARM"]
[5,"Ярославская область","Большесельский муниципальный район","78603000","Большесельский муниципальный район","78603000","26526441","ГУП ЖКХ ЯО \"Яркоммунсервис\" д. Сельцо","7604004508","760201008","производство (некомбинированная выработка)","WARM"]
[6,"Ярославская область","Большесельский муниципальный район","78603000","Большесельский муниципальный район","78603000","27712950","ОАО \"Яркоммунсервис\"","7604016214","760401001","производство (некомбинированная выработка)+передача+сбыт","WARM"]
[7,"Ярославская область","Большесельский муниципальный район","78603000","Большесельское сельское поселение","78603422","26901857","АО \"РЭУ\"","7714783092","332743001","производство (некомбинированная выработка)+передача+сбыт","WARM"]
[8,"Ярославская область","Большесельский муниципальный район","78603000","Большесельское сельское поселение","78603422","28507030","АО \"Яркоммунсервис\"","7602090950","760201001","производство (некомбинированная выработка)+передача+сбыт","WARM"]
[9,"Ярославская область","Большесельский муниципальный район","78603000","Большесельское сельское поселение","78603422","26483463","МУП \"Коммунальник\"","7613004085","761301001","производство (некомбинированная выработка)+передача+сбыт","WARM"]
[10,"Ярославская область","Большесельский муниципальный район","78603000","Вареговское сельское поселение","78603427","26901857","АО \"РЭУ\"","7714783092","332743001","производство (некомбинированная выработка)+передача+сбыт","WARM"]
[11,"Ярославская область","Большесельский муниципальный район","78603000","Вареговское сельское поселение","78603427","28267865","ООО  «Котельная завода «Пролетарская свобода»","7604077129","760401001","производство (некомбинированная выработка)+передача+сбыт","WARM"]
[12,"Ярославская область","Большесельский муниципальный район","78603000","Вареговское сельское поселение","78603427","26649353","ООО \"Котельная завода \"Пролетарская свобода\" с. Варегово","7604077129","761301002","производство (некомбинированная выработка)+передача+сбыт","WARM"]
[13,"Ярославская область","Большесельский муниципальный район","78603000","Вареговское сельское поселение","78603427","26483204","ООО \"ТехЭкспо\"","7604122607","760401001","производство (некомбинированная выработка)+передача+сбыт","WARM"]
[14,"Ярославская область","Борисоглебский муниципальный район","78606000","Андреевское сельское поселение","78606422","26569087","АО \"Ярославская генерирующая компания\"","7604178769","760601001","производство (некомбинированная выработка)+передача+сбыт","WARM"]
[15,"Ярославская область","Борисоглебский муниципальный район","78606000","Андреевское сельское поселение","78606422","26483222","ГУП ЖКХ ЯО \"Яркоммунсервис\" кот. Центра дет. и юношеского туризма","7604004508","760332001","производство (некомбинированная выработка)+передача+сбыт","WARM"]
[16,"Ярославская область","Борисоглебский муниципальный район","78606000","Борисоглебский муниципальный район","78606000","26569087","АО \"Ярославская генерирующая компания\"","7604178769","760601001","производство (некомбинированная выработка)+передача+сбыт","WARM"]
[17,"Ярославская область","Борисоглебский муниципальный район","78606000","Борисоглебский муниципальный район","78606000","26483498","ГУП ЖКХ ЯО \"Яркоммунсервис\"","7604004508","760401001","производство (некомбинированная выработка)+передача+сбыт","WARM"]
[18,"Ярославская область","Борисоглебский муниципальный район","78606000","Борисоглебский муниципальный район","78606000","26483222","ГУП ЖКХ ЯО \"Яркоммунсервис\" кот. Центра дет. и юношеского туризма","7604004508","760332001","производство (некомбинированная выработка)+передача+сбыт","WARM"]
[19,"Ярославская область","Борисоглебский муниципальный район","78606000","Борисоглебский муниципальный район","78606000","26483354","ГУП ЖКХ ЯО \"Яркоммунсервис\" кот. произв. лицея №46","7604004508","761432001","производство (некомбинированная выработка)+передача+сбыт","WARM"]
[20,"Ярославская область","Борисоглебский муниципальный район","78606000","Борисоглебский муниципальный район","78606000","26483356","МУП ЖКХ \"Акватерм-сервис\"","7614004641","761401001","производство (некомбинированная выработка)+передача+сбыт","WARM"]
[21,"Ярославская область","Борисоглебский муниципальный район","78606000","Борисоглебский муниципальный район","78606000","26649261","МУП ЖКХ \"Акватерм-сервис\" котельная ЦРБ (дрова)","7614004641","761401002","производство (некомбинированная выработка)+передача+сбыт","WARM"]
[22,"Ярославская область","Борисоглебский муниципальный район","78606000","Борисоглебский муниципальный район","78606000","26526763","МУП ЖКХ \"Борисоглебское\" ул. Вощажниковская","7614004426","761401002","производство (некомбинированная выработка)+передача+сбыт","WARM"]
[23,"Ярославская область","Борисоглебский муниципальный район","78606000","Борисоглебский муниципальный район","78606000","27712950","ОАО \"Яркоммунсервис\"","7604016214","760401001","производство (некомбинированная выработка)+передача+сбыт","WARM"]
[24,"Ярославская область","Борисоглебский муниципальный район","78606000","Борисоглебское сельское поселение","78606407","28507030","АО \"Яркоммунсервис\"","7602090950","760201001","производство (некомбинированная выработка)+передача+сбыт","WARM"]
[25,"Ярославская область","Борисоглебский муниципальный район","78606000","Борисоглебское сельское поселение","78606407","26569087","АО \"Ярославская генерирующая компания\"","7604178769","760601001","производство (некомбинированная выработка)+передача+сбыт","WARM"]
[26,"Ярославская область","Борисоглебский муниципальный район","78606000","Борисоглебское сельское поселение","78606407","26483222","ГУП ЖКХ ЯО \"Яркоммунсервис\" кот. Центра дет. и юношеского туризма","7604004508","760332001","производство (некомбинированная выработка)+передача+сбыт","WARM"]
[27,"Ярославская область","Борисоглебский муниципальный район","78606000","Вощажниковское сельское поселение","78606410","26569087","АО \"Ярославская генерирующая компания\"","7604178769","760601001","производство (некомбинированная выработка)+передача+сбыт","WARM"]
[28,"Ярославская область","Борисоглебский муниципальный район","78606000","Вощажниковское сельское поселение","78606410","26483222","ГУП ЖКХ ЯО \"Яркоммунсервис\" кот. Центра дет. и юношеского туризма","7604004508","760332001","производство (некомбинированная выработка)+передача+сбыт","WARM"]
[29,"Ярославская область","Борисоглебский муниципальный район","78606000","Высоковское сельское поселение","78606415","26569087","АО \"Ярославская генерирующая компания\"","7604178769","760601001","производство (некомбинированная выработка)+передача+сбыт","WARM"]
[30,"Ярославская область","Борисоглебский муниципальный район","78606000","Инальцинское сельское поселение","78606405","26569087","АО \"Ярославская генерирующая компания\"","7604178769","760601001","производство (некомбинированная выработка)+передача+сбыт","WARM"]
[31,"Ярославская область","Брейтовский муниципальный район","78609000","Брейтовский муниципальный район","78609000","26560525","АО \"ГУ ЖКХ\"","5116000922","511601001","производство (некомбинированная выработка)+сбыт","WARM"]
[32,"Ярославская область","Брейтовский муниципальный район","78609000","Брейтовский муниципальный район","78609000","26483498","ГУП ЖКХ ЯО \"Яркоммунсервис\"","7604004508","760401001","производство (некомбинированная выработка)+передача+сбыт","WARM"]
[33,"Ярославская область","Брейтовский муниципальный район","78609000","Брейтовский муниципальный район","78609000","26483222","ГУП ЖКХ ЯО \"Яркоммунсервис\" кот. Центра дет. и юношеского туризма","7604004508","760332001","производство (некомбинированная выработка)+передача+сбыт","WARM"]
[34,"Ярославская область","Брейтовский муниципальный район","78609000","Брейтовский муниципальный район","78609000","26526443","ГУП ЖКХ ЯО \"Яркоммунсервис\" пос. Брейтово","7604004508","760201009","производство (некомбинированная выработка)+сбыт","WARM"]
[35,"Ярославская область","Брейтовский муниципальный район","78609000","Брейтовский муниципальный район","78609000","30344297","МУП \"Коммунальное хозяйство\"","7615011610","761501001","Теплоноситель - Сбыт :: Производство :: Передача","WARM"]
[36,"Ярославская область","Брейтовский муниципальный район","78609000","Брейтовский муниципальный район","78609000","30344297","МУП \"Коммунальное хозяйство\"","7615011610","761501001","производство (некомбинированная выработка)","WARM"]
[37,"Ярославская область","Брейтовский муниципальный район","78609000","Брейтовский муниципальный район","78609000","30344297","МУП \"Коммунальное хозяйство\"","7615011610","761501001","производство (некомбинированная выработка)+передача","WARM"]
[38,"Ярославская область","Брейтовский муниципальный район","78609000","Брейтовский муниципальный район","78609000","30344297","МУП \"Коммунальное хозяйство\"","7615011610","761501001","производство (некомбинированная выработка)+передача+сбыт","WARM"]
[39,"Ярославская область","Брейтовский муниципальный район","78609000","Брейтовский муниципальный район","78609000","26483459","МУП ЖКХ \"Брейтовское\"","7615010408","761501001","производство (некомбинированная выработка)+передача+сбыт","WARM"]
[40,"Ярославская область","Брейтовский муниципальный район","78609000","Брейтовский муниципальный район","78609000","27712950","ОАО \"Яркоммунсервис\"","7604016214","760401001","производство (некомбинированная выработка)+передача+сбыт","WARM"]
[41,"Ярославская область","Брейтовский муниципальный район","78609000","Брейтовское сельское поселение","78609411","28507030","АО \"Яркоммунсервис\"","7602090950","760201001","производство (некомбинированная выработка)+передача+сбыт","WARM"]
[42,"Ярославская область","Брейтовский муниципальный район","78609000","Брейтовское сельское поселение","78609411","30344297","МУП \"Коммунальное хозяйство\"","7615011610","761501001","Передача","WARM"]
[43,"Ярославская область","Брейтовский муниципальный район","78609000","Брейтовское сельское поселение","78609411","30344297","МУП \"Коммунальное хозяйство\"","7615011610","761501001","Передача+Сбыт","WARM"]
[44,"Ярославская область","Брейтовский муниципальный район","78609000","Брейтовское сельское поселение","78609411","30344297","МУП \"Коммунальное хозяйство\"","7615011610","761501001","Теплоноситель - Сбыт :: Производство :: Передача","WARM"]
[45,"Ярославская область","Брейтовский муниципальный район","78609000","Гореловское сельское поселение","78609422","30344297","МУП \"Коммунальное хозяйство\"","7615011610","761501001","Передача","WARM"]
[46,"Ярославская область","Брейтовский муниципальный район","78609000","Гореловское сельское поселение","78609422","30344297","МУП \"Коммунальное хозяйство\"","7615011610","761501001","Теплоноситель - Сбыт :: Производство :: Передача","WARM"]
[47,"Ярославская область","Брейтовский муниципальный район","78609000","Прозоровское сельское поселение","78609433","30344297","МУП \"Коммунальное хозяйство\"","7615011610","761501001","Передача","WARM"]
[48,"Ярославская область","Брейтовский муниципальный район","78609000","Прозоровское сельское поселение","78609433","30344297","МУП \"Коммунальное хозяйство\"","7615011610","761501001","Теплоноситель - Сбыт :: Производство :: Передача","WARM"]
[49,"Ярославская область","Гаврилов-Ямский муниципальный район","78612000","Великосельское сельское поселение","78612405","26901857","АО \"РЭУ\"","7714783092","332743001","производство (некомбинированная выработка)+передача+сбыт","WARM"]
[50,"Ярославская область","Гаврилов-Ямский муниципальный район","78612000","Великосельское сельское поселение","78612405","28507030","АО \"Яркоммунсервис\"","7602090950","760201001","производство (некомбинированная выработка)+передача+сбыт","WARM"]
[51,"Ярославская область","Гаврилов-Ямский муниципальный район","78612000","Великосельское сельское поселение","78612405","26483352","Великосельское МП ЖКХ","7616006563","761601001","производство (некомбинированная выработка)+передача+сбыт","WARM"]
[52,"Ярославская область","Гаврилов-Ямский муниципальный район","78612000","Великосельское сельское поселение","78612405","28507308","Филиал в Ярославской и Костромской областях ОАО междугородной и международной электрической связи \"Ростелеком\"","7707049388","760443001","производство (некомбинированная выработка)+передача+сбыт","WARM"]
[53,"Ярославская область","Гаврилов-Ямский муниципальный район","78612000","Гаврилов-Ямский муниципальный район","78612000","26901857","АО \"РЭУ\"","7714783092","332743001","производство (некомбинированная выработка)+передача+сбыт","WARM"]
[54,"Ярославская область","Гаврилов-Ямский муниципальный район","78612000","Гаврилов-Ямский муниципальный район","78612000","26483352","Великосельское МП ЖКХ","7616006563","761601001","производство (некомбинированная выработка)+передача+сбыт","WARM"]
[55,"Ярославская область","Гаврилов-Ямский муниципальный район","78612000","Гаврилов-Ямский муниципальный район","78612000","26483498","ГУП ЖКХ ЯО \"Яркоммунсервис\"","7604004508","760401001","производство (некомбинированная выработка)+передача+сбыт","WARM"]
[56,"Ярославская область","Гаврилов-Ямский муниципальный район","78612000","Гаврилов-Ямский муниципальный район","78612000","26483222","ГУП ЖКХ ЯО \"Яркоммунсервис\" кот. Центра дет. и юношеского туризма","7604004508","760332001","производство (некомбинированная выработка)+передача+сбыт","WARM"]
[57,"Ярославская область","Гаврилов-Ямский муниципальный район","78612000","Гаврилов-Ямский муниципальный район","78612000","26483344","ГУП ЖКХ ЯО \"Яркоммунсервис\" с. Стогинское","7604004508","761632001","производство (некомбинированная выработка)+передача+сбыт","WARM"]
[58,"Ярославская область","Гаврилов-Ямский муниципальный район","78612000","Гаврилов-Ямский муниципальный район","78612000","26483348","ГУП санаторий-профилакторий \"Сосновый бор\"","7616001068","761601001","производство (некомбинированная выработка)+передача+сбыт","WARM"]
[59,"Ярославская область","Гаврилов-Ямский муниципальный район","78612000","Гаврилов-Ямский муниципальный район","78612000","26483350","ОАО \"Гаврилов-Ямский машиностроительный завод \"Агат\"","7616002417","761601001","производство (некомбинированная выработка)+передача+сбыт","WARM"]
[60,"Ярославская область","Гаврилов-Ямский муниципальный район","78612000","Гаврилов-Ямский муниципальный район","78612000","26649249","ОАО \"Ростелеком\" ТУ №6 котельная с. Шопша","7707049388","993131002","производство (некомбинированная выработка)+передача+сбыт","WARM"]
[61,"Ярославская область","Гаврилов-Ямский муниципальный район","78612000","Гаврилов-Ямский муниципальный район","78612000","27712950","ОАО \"Яркоммунсервис\"","7604016214","760401001","производство (некомбинированная выработка)+передача+сбыт","WARM"]
[62,"Ярославская область","Гаврилов-Ямский муниципальный район","78612000","Гаврилов-Ямский муниципальный район","78612000","28507308","Филиал в Ярославской и Костромской областях ОАО междугородной и международной электрической связи \"Ростелеком\"","7707049388","760443001","производство (некомбинированная выработка)+передача+сбыт","WARM"]
[63,"Ярославская область","Гаврилов-Ямский муниципальный район","78612000","Гаврилов-Ямский муниципальный район","78612000","26483342","Шопшинское МП ЖКХ","7616006316","761601001","производство (некомбинированная выработка)+передача+сбыт","WARM"]
[64,"Ярославская область","Гаврилов-Ямский муниципальный район","78612000","Городское поселение г. Гаврилов-Ям","78612101","26901857","АО \"РЭУ\"","7714783092","332743001","производство (некомбинированная выработка)+передача+сбыт","WARM"]
[65,"Ярославская область","Гаврилов-Ямский муниципальный район","78612000","Городское поселение г. Гаврилов-Ям","78612101","26483340","АО \"Ресурс\"","7616009483","761601001","производство (некомбинированная выработка)+передача+сбыт","WARM"]
[66,"Ярославская область","Гаврилов-Ямский муниципальный район","78612000","Городское поселение г. Гаврилов-Ям","78612101","26649226","Гаврилов-Ямское МП ЖКХ","7616000650","761601002","Передача","WARM"]
[67,"Ярославская область","Гаврилов-Ямский муниципальный район","78612000","Городское поселение г. Гаврилов-Ям","78612101","28507308","Филиал в Ярославской и Костромской областях ОАО междугородной и международной электрической связи \"Ростелеком\"","7707049388","760443001","производство (некомбинированная выработка)+передача+сбыт","WARM"]
[68,"Ярославская область","Гаврилов-Ямский муниципальный район","78612000","Заячье-Холмское сельское поселение","78612477","26901857","АО \"РЭУ\"","7714783092","332743001","производство (некомбинированная выработка)+передача+сбыт","WARM"]
[69,"Ярославская область","Гаврилов-Ямский муниципальный район","78612000","Заячье-Холмское сельское поселение","78612477","28507308","Филиал в Ярославской и Костромской областях ОАО междугородной и международной электрической связи \"Ростелеком\"","7707049388","760443001","производство (некомбинированная выработка)+передача+сбыт","WARM"]
[70,"Ярославская область","Гаврилов-Ямский муниципальный район","78612000","Митинское сельское поселение","78612450","26901857","АО \"РЭУ\"","7714783092","332743001","производство (некомбинированная выработка)+передача+сбыт","WARM"]
[71,"Ярославская область","Гаврилов-Ямский муниципальный район","78612000","Митинское сельское поселение","78612450","28507030","АО \"Яркоммунсервис\"","7602090950","760201001","производство (некомбинированная выработка)+передача+сбыт","WARM"]
[72,"Ярославская область","Гаврилов-Ямский муниципальный район","78612000","Митинское сельское поселение","78612450","28507308","Филиал в Ярославской и Костромской областях ОАО междугородной и международной электрической связи \"Ростелеком\"","7707049388","760443001","производство (некомбинированная выработка)+передача+сбыт","WARM"]
[73,"Ярославская область","Гаврилов-Ямский муниципальный район","78612000","Шопшинское сельское поселение","78612490","26901857","АО \"РЭУ\"","7714783092","332743001","производство (некомбинированная выработка)+передача+сбыт","WARM"]
[74,"Ярославская область","Гаврилов-Ямский муниципальный район","78612000","Шопшинское сельское поселение","78612490","28982870","ООО \"ТеплоЭнергоСтройМонтаж\"","7606074821","762701001","производство (некомбинированная выработка)+сбыт","WARM"]
[75,"Ярославская область","Гаврилов-Ямский муниципальный район","78612000","Шопшинское сельское поселение","78612490","28507308","Филиал в Ярославской и Костромской областях ОАО междугородной и международной электрической связи \"Ростелеком\"","7707049388","760443001","производство (некомбинированная выработка)+передача+сбыт","WARM"]
[76,"Ярославская область","Гаврилов-Ямский муниципальный район","78612000","Шопшинское сельское поселение","78612490","26649247","Филиал в Ярославской и Костромской областях ОАО междугородной и международной электрической связи \"Ростелеком\"","7707049388","760443003","производство (некомбинированная выработка)+передача+сбыт","WARM"]
[77,"Ярославская область","Даниловский муниципальный район","78615000","Городское поселение г. Данилов","78615101","26901857","АО \"РЭУ\"","7714783092","332743001","производство (некомбинированная выработка)+передача+сбыт","WARM"]
[78,"Ярославская область","Даниловский муниципальный район","78615000","Городское поселение г. Данилов","78615101","26483455","ОАО \"Даниловский маслосырзвод\"","7617000268","761701001","производство (некомбинированная выработка)+передача+сбыт","WARM"]
[79,"Ярославская область","Даниловский муниципальный район","78615000","Городское поселение г. Данилов","78615101","26483474","ОАО \"Даниловское ЖКХ\"","7617008098","761701001","производство (некомбинированная выработка)","WARM"]
[80,"Ярославская область","Даниловский муниципальный район","78615000","Городское поселение г. Данилов","78615101","26836275","Северная Дирекция по тепловодоснабжению структурное подразделение Центральной дирекции по тепловодоснабжению - филиала ОАО \"РЖД\"","7708503727","760445028","производство (некомбинированная выработка)","WARM"]
[81,"Ярославская область","Даниловский муниципальный район","78615000","Даниловский муниципальный район","78615000","26483498","ГУП ЖКХ ЯО \"Яркоммунсервис\"","7604004508","760401001","производство (некомбинированная выработка)+передача+сбыт","WARM"]
[82,"Ярославская область","Даниловский муниципальный район","78615000","Даниловский муниципальный район","78615000","26649187","ГУП ЖКХ ЯО \"Яркоммунсервис\" с. Горинское","7604004508","762132001","производство (некомбинированная выработка)+передача+сбыт","WARM"]
[83,"Ярославская область","Даниловский муниципальный район","78615000","Даниловский муниципальный район","78615000","30792750","МКП «Теплосервис»","7617009623","761701001","производство (некомбинированная выработка)","WARM"]
[84,"Ярославская область","Даниловский муниципальный район","78615000","Даниловский муниципальный район","78615000","27712950","ОАО \"Яркоммунсервис\"","7604016214","760401001","производство (некомбинированная выработка)+передача+сбыт","WARM"]
[85,"Ярославская область","Даниловский муниципальный район","78615000","Даниловский муниципальный район","78615000","26483449","ООО \"Газпром трансгаз Ухта\" Переславское ЛПУ МГ","1102024468","762232001","производство (некомбинированная выработка)+передача+сбыт","WARM"]
[86,"Ярославская область","Даниловский муниципальный район","78615000","Даниловский муниципальный район","78615000","26526551","Ярославский участок дирекции по тепловодоснабжению СЖД- филиала ОАО \"РЖД\", котельные крановых мастерских, вокзальная котельная","7708503727","997650005","производство (некомбинированная выработка)+передача+сбыт","WARM"]
[87,"Ярославская область","Даниловский муниципальный район","78615000","Даниловское сельское поселение","78615435","28507030","АО \"Яркоммунсервис\"","7602090950","760201001","производство (некомбинированная выработка)+передача+сбыт","WARM"]
[88,"Ярославская область","Любимский муниципальный район","78618000","Воскресенское сельское поселение","78618405","26901857","АО \"РЭУ\"","7714783092","332743001","производство (некомбинированная выработка)+передача+сбыт","WARM"]
[89,"Ярославская область","Любимский муниципальный район","78618000","Городское поселение г. Любим","78618101","26901857","АО \"РЭУ\"","7714783092","332743001","производство (некомбинированная выработка)+передача+сбыт","WARM"]
[90,"Ярославская область","Любимский муниципальный район","78618000","Городское поселение г. Любим","78618101","26483338","Любимское МУП ЖКХ","7618000140","761801001","производство (некомбинированная выработка)+передача+сбыт","WARM"]
[91,"Ярославская область","Любимский муниципальный район","78618000","Ермаковское сельское поселение","78618410","26901857","АО \"РЭУ\"","7714783092","332743001","производство (некомбинированная выработка)+передача+сбыт","WARM"]
[92,"Ярославская область","Любимский муниципальный район","78618000","Любимский муниципальный район","78618000","26901857","АО \"РЭУ\"","7714783092","332743001","производство (некомбинированная выработка)+передача+сбыт","WARM"]
[93,"Ярославская область","Любимский муниципальный район","78618000","Любимский муниципальный район","78618000","28505444","МУП \"Любимский теплосервис\"","7618004018","761801001","производство (некомбинированная выработка)+передача+сбыт","WARM"]
[94,"Ярославская область","Любимский муниципальный район","78618000","Осецкое сельское поселение","78618433","26901857","АО \"РЭУ\"","7714783092","332743001","производство (некомбинированная выработка)+передача+сбыт","WARM"]
[95,"Ярославская область","Мышкинский муниципальный район","78621000","Городское поселение г. Мышкин","78621101","26569087","АО \"Ярославская генерирующая компания\"","7604178769","760601001","производство (некомбинированная выработка)+передача+сбыт","WARM"]
[96,"Ярославская область","Мышкинский муниципальный район","78621000","Городское поселение г. Мышкин","78621101","26526439","ГУП ЖКХ ЯО \"Яркоммунсервис\" с. Кривец","7604004508","760201007","производство (некомбинированная выработка)+передача+сбыт","WARM"]
[97,"Ярославская область","Мышкинский муниципальный район","78621000","Городское поселение г. Мышкин","78621101","26526560","МУП \"Энергетик\"","7619000048","761902001","производство (некомбинированная выработка)+передача+сбыт","WARM"]
[98,"Ярославская область","Мышкинский муниципальный район","78621000","Городское поселение г. Мышкин","78621101","26569089","ОАО \"Ярославская генерирующая компания\"","7604178769","761901001","производство (некомбинированная выработка)+передача+сбыт","WARM"]
[99,"Ярославская область","Мышкинский муниципальный район","78621000","Охотинское сельское поселение","78621430","26569087","АО \"Ярославская генерирующая компания\"","7604178769","760601001","производство (некомбинированная выработка)+передача+сбыт","WARM"]
[100,"Ярославская область","Мышкинский муниципальный район","78621000","Приволжское сельское поселение","78621415","28507030","АО \"Яркоммунсервис\"","7602090950","760201001","производство (некомбинированная выработка)+передача+сбыт","WARM"]
[101,"Ярославская область","Мышкинский муниципальный район","78621000","Приволжское сельское поселение","78621415","26569087","АО \"Ярославская генерирующая компания\"","7604178769","760601001","производство (некомбинированная выработка)+передача+сбыт","WARM"]
[102,"Ярославская область","Мышкинский муниципальный район","78621000","Приволжское сельское поселение","78621415","27712950","ОАО \"Яркоммунсервис\"","7604016214","760401001","производство (некомбинированная выработка)+передача+сбыт","WARM"]
[103,"Ярославская область","Некоузский муниципальный район","78623000","Веретейское сельское поселение","78623404","26569087","АО \"Ярославская генерирующая компания\"","7604178769","760601001","производство (некомбинированная выработка)+передача+сбыт","WARM"]
[104,"Ярославская область","Некоузский муниципальный район","78623000","Веретейское сельское поселение","78623404","26557735","Филиал ФГУП \"ЖКУ РАН\" Борок","7736111591","762043001","производство (некомбинированная выработка)+передача+сбыт","WARM"]
[105,"Ярославская область","Некоузский муниципальный район","78623000","Волжское сельское поселение","78623406","26901857","АО \"РЭУ\"","7714783092","332743001","производство (некомбинированная выработка)+передача+сбыт","WARM"]
[106,"Ярославская область","Некоузский муниципальный район","78623000","Волжское сельское поселение","78623406","26569087","АО \"Ярославская генерирующая компания\"","7604178769","760601001","производство (некомбинированная выработка)+передача+сбыт","WARM"]
[107,"Ярославская область","Некоузский муниципальный район","78623000","Некоузский муниципальный район","78623000","26560525","АО \"ГУ ЖКХ\"","5116000922","511601001","производство (некомбинированная выработка)+сбыт","WARM"]
[108,"Ярославская область","Некоузский муниципальный район","78623000","Некоузский муниципальный район","78623000","26569087","АО \"Ярославская генерирующая компания\"","7604178769","760601001","производство (некомбинированная выработка)+передача+сбыт","WARM"]
[109,"Ярославская область","Некоузский муниципальный район","78623000","Некоузский муниципальный район","78623000","26483443","МУП \"Октябрьское жилищно-коммунальное хозяйство\"","7620004833","762001001","производство (некомбинированная выработка)+передача+сбыт","WARM"]
[110,"Ярославская область","Некоузский муниципальный район","78623000","Некоузский муниципальный район","78623000","26483447","Филиал ООО \"Транснефть-Балтика\"-Ярославское районное нефтепроводное управление","4704041900","762702001","производство (некомбинированная выработка)+передача+сбыт","WARM"]
[111,"Ярославская область","Некоузский муниципальный район","78623000","Некоузское сельское поселение","78623415","26569087","АО \"Ярославская генерирующая компания\"","7604178769","760601001","производство (некомбинированная выработка)+передача+сбыт","WARM"]
[112,"Ярославская область","Некоузский муниципальный район","78623000","Некоузское сельское поселение","78623415","26483447","Филиал ООО \"Транснефть-Балтика\"-Ярославское районное нефтепроводное управление","4704041900","762702001","производство (некомбинированная выработка)+передача","WARM"]
[113,"Ярославская область","Некоузский муниципальный район","78623000","Октябрьское сельское поселение","78623427","26569087","АО \"Ярославская генерирующая компания\"","7604178769","760601001","производство (некомбинированная выработка)+передача+сбыт","WARM"]
[114,"Ярославская область","Некоузский муниципальный район","78623000","Октябрьское сельское поселение","78623427","26483443","МУП \"Октябрьское жилищно-коммунальное хозяйство\"","7620004833","762001001","производство (некомбинированная выработка)+передача+сбыт","WARM"]
[115,"Ярославская область","Некрасовский муниципальный район","78626000","Бурмакино сельское поселение","78626409","26901857","АО \"РЭУ\"","7714783092","332743001","производство (некомбинированная выработка)+передача+сбыт","WARM"]
[116,"Ярославская область","Некрасовский муниципальный район","78626000","Бурмакино сельское поселение","78626409","28507030","АО \"Яркоммунсервис\"","7602090950","760201001","производство (некомбинированная выработка)+передача+сбыт","WARM"]
[117,"Ярославская область","Некрасовский муниципальный район","78626000","Бурмакино сельское поселение","78626409","26526434","ГУП ЖКХ ЯО \"Яркоммунсервис\" с. Новое","7604004508","760201005","производство (некомбинированная выработка)+передача+сбыт","WARM"]
[118,"Ярославская область","Некрасовский муниципальный район","78626000","Бурмакино сельское поселение","78626409","28425128","МУП ЖКХ \"Бурмакино\"","7621009707","762101001","производство (некомбинированная выработка)","WARM"]
[119,"Ярославская область","Некрасовский муниципальный район","78626000","Бурмакино сельское поселение","78626409","26650317","ФГ КЭУ \"Ярославская КЭЧ\" Министерства обороны РФ","7604002910","760401001","производство (некомбинированная выработка)+передача+сбыт","WARM"]
[120,"Ярославская область","Некрасовский муниципальный район","78626000","Бурмакино сельское поселение","78626409","26526614","Ярославская дистанция гражданских сооружений, водоснабжения и водоотведения ЯО СЖД-филиала ОАО \"РЖД\"","7708503727","997650007","производство (некомбинированная выработка)+передача+сбыт","WARM"]
[121,"Ярославская область","Некрасовский муниципальный район","78626000","Красный Профинтерн сельское поселение","78626444","26901857","АО \"РЭУ\"","7714783092","332743001","производство (некомбинированная выработка)+передача+сбыт","WARM"]
[122,"Ярославская область","Некрасовский муниципальный район","78626000","Красный Профинтерн сельское поселение","78626444","28507030","АО \"Яркоммунсервис\"","7602090950","760201001","производство (некомбинированная выработка)+передача+сбыт","WARM"]
[123,"Ярославская область","Некрасовский муниципальный район","78626000","Красный Профинтерн сельское поселение","78626444","26483506","МУП ЖКХ \"Заволжское\"","7621005558","762101001","Передача+Сбыт","WARM"]
[124,"Ярославская область","Некрасовский муниципальный район","78626000","Красный Профинтерн сельское поселение","78626444","26483506","МУП ЖКХ \"Заволжское\"","7621005558","762101001","производство (некомбинированная выработка)+передача+сбыт","WARM"]
[125,"Ярославская область","Некрасовский муниципальный район","78626000","Красный Профинтерн сельское поселение","78626444","26483506","МУП ЖКХ \"Заволжское\"","7621005558","762101001","производство комбинированная выработка","WARM"]
[126,"Ярославская область","Некрасовский муниципальный район","78626000","Некрасовский муниципальный район","78626000","26560525","АО \"ГУ ЖКХ\"","5116000922","511601001","производство (некомбинированная выработка)+сбыт","WARM"]
[127,"Ярославская область","Некрасовский муниципальный район","78626000","Некрасовский муниципальный район","78626000","26901857","АО \"РЭУ\"","7714783092","332743001","производство (некомбинированная выработка)+передача+сбыт","WARM"]
[128,"Ярославская область","Некрасовский муниципальный район","78626000","Некрасовский муниципальный район","78626000","28442711","МУП \"РКЦ ЖКУ\"","7621006030","762101001","производство (некомбинированная выработка)+передача","WARM"]
[129,"Ярославская область","Некрасовский муниципальный район","78626000","Некрасовский муниципальный район","78626000","26483506","МУП ЖКХ \"Заволжское\"","7621005558","762101001","Передача+Сбыт","WARM"]
[130,"Ярославская область","Некрасовский муниципальный район","78626000","Некрасовский муниципальный район","78626000","26483506","МУП ЖКХ \"Заволжское\"","7621005558","762101001","производство (некомбинированная выработка)+передача+сбыт","WARM"]
[131,"Ярославская область","Некрасовский муниципальный район","78626000","Некрасовский муниципальный район","78626000","26483506","МУП ЖКХ \"Заволжское\"","7621005558","762101001","производство комбинированная выработка","WARM"]
[132,"Ярославская область","Некрасовский муниципальный район","78626000","Некрасовский муниципальный район","78626000","27712950","ОАО \"Яркоммунсервис\"","7604016214","760401001","производство (некомбинированная выработка)+передача+сбыт","WARM"]
[133,"Ярославская область","Некрасовский муниципальный район","78626000","Некрасовский муниципальный район","78626000","26836275","Северная Дирекция по тепловодоснабжению структурное подразделение Центральной дирекции по тепловодоснабжению - филиала ОАО \"РЖД\"","7708503727","760445028","производство (некомбинированная выработка)","WARM"]
[134,"Ярославская область","Некрасовский муниципальный район","78626000","Некрасовское сельское поселение","78626457","26901857","АО \"РЭУ\"","7714783092","332743001","производство (некомбинированная выработка)+передача+сбыт","WARM"]
[135,"Ярославская область","Некрасовский муниципальный район","78626000","Некрасовское сельское поселение","78626457","28507030","АО \"Яркоммунсервис\"","7602090950","760201001","производство (некомбинированная выработка)+передача+сбыт","WARM"]
[136,"Ярославская область","Некрасовский муниципальный район","78626000","Некрасовское сельское поселение","78626457","26483498","ГУП ЖКХ ЯО \"Яркоммунсервис\"","7604004508","760401001","производство (некомбинированная выработка)+передача+сбыт","WARM"]
[137,"Ярославская область","Некрасовский муниципальный район","78626000","Некрасовское сельское поселение","78626457","26483312","ГУП ЖКХ ЯО \"Яркоммунсервис\"  п. Сосновый Бор (ГУ ЯО ОТБ)","7604004508","760201002","производство (некомбинированная выработка)+передача+сбыт","WARM"]
[138,"Ярославская область","Некрасовский муниципальный район","78626000","Некрасовское сельское поселение","78626457","26483316","ГУП ЖКХ ЯО \"Яркоммунсервис\" (ОДТС \"Бабайки\")","7604004508","762132002","производство (некомбинированная выработка)+передача+сбыт","WARM"]
[139,"Ярославская область","Некрасовский муниципальный район","78626000","Некрасовское сельское поселение","78626457","26483330","ГУП ЖКХ ЯО \"Яркоммунсервис\" кот. п. Красный Профинтерн","7604004508","760201001","производство (некомбинированная выработка)+передача+сбыт","WARM"]
[140,"Ярославская область","Некрасовский муниципальный район","78626000","Некрасовское сельское поселение","78626457","26483326","ГУП ЖКХ ЯО \"Яркоммунсервис\" п. Вятское (ГОУ Учебный центр УВД)","7604004508","762132004","производство (некомбинированная выработка)+передача+сбыт","WARM"]
[141,"Ярославская область","Некрасовский муниципальный район","78626000","Некрасовское сельское поселение","78626457","26483318","ГУП ЖКХ ЯО \"Яркоммунсервис\" п. Некрасовское (дом-инт. для престарелых и инвалидов)","7604004508","762132003","производство (некомбинированная выработка)+передача+сбыт","WARM"]
[142,"Ярославская область","Некрасовский муниципальный район","78626000","Некрасовское сельское поселение","78626457","26483334","ГУП ЖКХ ЯО \"Яркоммунсервис\" п.Строитель","7604004508","762132006","производство (некомбинированная выработка)+передача+сбыт","WARM"]
[143,"Ярославская область","Некрасовский муниципальный район","78626000","Некрасовское сельское поселение","78626457","26483320","ЗАО \"Левашово\"","7621000461","762101001","производство (некомбинированная выработка)","WARM"]
[144,"Ярославская область","Некрасовский муниципальный район","78626000","Некрасовское сельское поселение","78626457","29646676","МУП \"Энергетический ресурс\" Некрасовского муниципального района","7621010075","762101001","производство (некомбинированная выработка)+передача+сбыт","WARM"]
[145,"Ярославская область","Некрасовский муниципальный район","78626000","Некрасовское сельское поселение","78626457","26483322","МУП ЖКХ \"Заволжское\" котельные","7621006992","762101001","производство (некомбинированная выработка)+передача+сбыт","WARM"]
[146,"Ярославская область","Некрасовский муниципальный район","78626000","Некрасовское сельское поселение","78626457","26483332","Некрасовское МП ЖКХ","7621000133","762101001","производство (некомбинированная выработка)+передача+сбыт","WARM"]
[147,"Ярославская область","Некрасовский муниципальный район","78626000","Некрасовское сельское поселение","78626457","26526586","Некрасовское МП ЖКХ передача","7621004307","762101003","Передача","WARM"]
[148,"Ярославская область","Некрасовский муниципальный район","78626000","Некрасовское сельское поселение","78626457","26526584","ОАО \"6 арсенал\"","7621004307","762101002","производство (некомбинированная выработка)+передача+сбыт","WARM"]
[149,"Ярославская область","Некрасовский муниципальный район","78626000","Некрасовское сельское поселение","78626457","26483336","ООО \"Санаторий Золотой колос\"","7621006054","762101001","производство (некомбинированная выработка)+передача+сбыт","WARM"]
[150,"Ярославская область","Некрасовский муниципальный район","78626000","Некрасовское сельское поселение","78626457","26526612","Ярославский участок дирекции по тепловодоснабжению СЖД- филиала ОАО \"РЖД\" станция Сахареж","7708503727","997650006","производство (некомбинированная выработка)+передача+сбыт","WARM"]
[151,"Ярославская область","Первомайский муниципальный район","78629000","Городское поселение п.Пречистое","78629151","26514573","АО \"Первомайское коммунальное хозяйство\"","7623004895","762301001","производство (некомбинированная выработка)+передача+сбыт","WARM"]
[152,"Ярославская область","Первомайский муниципальный район","78629000","Городское поселение п.Пречистое","78629151","26483192","ОАО \"ТЭСС\"","7603015835","760301001","производство (некомбинированная выработка)+передача+сбыт","WARM"]
[153,"Ярославская область","Первомайский муниципальный район","78629000","Кукобойское сельское поселение","78629435","26514573","АО \"Первомайское коммунальное хозяйство\"","7623004895","762301001","производство (некомбинированная выработка)+передача+сбыт","WARM"]
[154,"Ярославская область","Первомайский муниципальный район","78629000","Кукобойское сельское поселение","78629435","28821524","МУП ЖКХ Первомайского муниципального района Ярославской области \"Теплоснаб\"","7623005151","762301001","производство (некомбинированная выработка)+сбыт","WARM"]
[155,"Ярославская область","Первомайский муниципальный район","78629000","Кукобойское сельское поселение","78629435","26526727","ООО \"Рубеж\"","7623004581","762301001","производство (некомбинированная выработка)+передача+сбыт","WARM"]
[156,"Ярославская область","Первомайский муниципальный район","78629000","Первомайский муниципальный район","78629000","26514573","АО \"Первомайское коммунальное хозяйство\"","7623004895","762301001","производство (некомбинированная выработка)+передача+сбыт","WARM"]
[157,"Ярославская область","Первомайский муниципальный район","78629000","Первомайский муниципальный район","78629000","26526739","Вологодский территориальный участок северной дирекции по тепловодоснабжению - структурного подразделения центральной дирекции по тепловодоснабжению  филиала ОАО \"РЖД\"","7708503727","997650008","производство (некомбинированная выработка)+передача+сбыт","WARM"]
[158,"Ярославская область","Первомайский муниципальный район","78629000","Первомайский муниципальный район","78629000","26526722","ОАО \"Первомайское коммунальное хозяйство\" (пос. Пречистое)","7623004895","762301002","производство (некомбинированная выработка)+передача+сбыт","WARM"]
[159,"Ярославская область","Первомайский муниципальный район","78629000","Первомайский муниципальный район","78629000","26526725","ОАО \"Первомайское коммунальное хозяйство\" (с. Коза)","7623004895","762101003","производство (некомбинированная выработка)+передача+сбыт","WARM"]
[160,"Ярославская область","Первомайский муниципальный район","78629000","Пречистенское сельское поселение","78629450","26514573","АО \"Первомайское коммунальное хозяйство\"","7623004895","762301001","производство (некомбинированная выработка)+передача+сбыт","WARM"]
[161,"Ярославская область","Первомайский муниципальный район","78629000","Пречистенское сельское поселение","78629450","26836275","Северная Дирекция по тепловодоснабжению структурное подразделение Центральной дирекции по тепловодоснабжению - филиала ОАО \"РЖД\"","7708503727","760445028","производство (некомбинированная выработка)","WARM"]
[162,"Ярославская область","Переславский муниципальный район","78632000","Нагорьевское сельское поселение","78632452","26569087","АО \"Ярославская генерирующая компания\"","7604178769","760601001","производство (некомбинированная выработка)+передача+сбыт","WARM"]
[163,"Ярославская область","Переславский муниципальный район","78632000","Переславский муниципальный район","78632000","26569087","АО \"Ярославская генерирующая компания\"","7604178769","760601001","производство (некомбинированная выработка)+передача+сбыт","WARM"]
[164,"Ярославская область","Переславский муниципальный район","78632000","Пригородное сельское поселение","78632455","26569087","АО \"Ярославская генерирующая компания\"","7604178769","760601001","производство (некомбинированная выработка)+передача+сбыт","WARM"]
[165,"Ярославская область","Переславский муниципальный район","78632000","Рязанцевское сельское поселение","78632468","26569087","АО \"Ярославская генерирующая компания\"","7604178769","760601001","производство (некомбинированная выработка)+передача+сбыт","WARM"]
[166,"Ярославская область","Пошехонский муниципальный район","78634000","Белосельское сельское поселение","78634404","26569087","АО \"Ярославская генерирующая компания\"","7604178769","760601001","производство (некомбинированная выработка)+передача+сбыт","WARM"]
[167,"Ярославская область","Пошехонский муниципальный район","78634000","Городское поселение Пошехонье","78634101","26569087","АО \"Ярославская генерирующая компания\"","7604178769","760601001","производство (некомбинированная выработка)+передача+сбыт","WARM"]
[168,"Ярославская область","Пошехонский муниципальный район","78634000","Ермаковское сельское поселение","78634428","26569087","АО \"Ярославская генерирующая компания\"","7604178769","760601001","производство (некомбинированная выработка)+передача+сбыт","WARM"]
[169,"Ярославская область","Пошехонский муниципальный район","78634000","Кременевское сельское поселение","78634460","26569087","АО \"Ярославская генерирующая компания\"","7604178769","760601001","производство (некомбинированная выработка)+передача+сбыт","WARM"]
[170,"Ярославская область","Пошехонский муниципальный район","78634000","Пошехонский муниципальный район","78634000","26569087","АО \"Ярославская генерирующая компания\"","7604178769","760601001","производство (некомбинированная выработка)+передача+сбыт","WARM"]
[171,"Ярославская область","Пошехонский муниципальный район","78634000","Пошехонский муниципальный район","78634000","26483310","ОАО \"Пошехонская теплосеть\"","7624004506","762401001","производство (некомбинированная выработка)+передача+сбыт","WARM"]
[172,"Ярославская область","Пошехонский муниципальный район","78634000","Пригородное сельское поселение","78634436","26569087","АО \"Ярославская генерирующая компания\"","7604178769","760601001","производство (некомбинированная выработка)+передача+сбыт","WARM"]
[173,"Ярославская область","Ростовский муниципальный район","78637000","Городское поселение г.Ростов","78637101","26560525","АО \"ГУ ЖКХ\"","5116000922","511601001","Передача","WARM"]
[174,"Ярославская область","Ростовский муниципальный район","78637000","Городское поселение г.Ростов","78637101","26901857","АО \"РЭУ\"","7714783092","332743001","производство (некомбинированная выработка)+передача+сбыт","WARM"]
[175,"Ярославская область","Ростовский муниципальный район","78637000","Городское поселение г.Ростов","78637101","26569087","АО \"Ярославская генерирующая компания\"","7604178769","760601001","производство (некомбинированная выработка)+передача+сбыт","WARM"]
[176,"Ярославская область","Ростовский муниципальный район","78637000","Городское поселение г.Ростов","78637101","26483431","ЗАО \"Атрус\"","7609002208","760901001","производство (некомбинированная выработка)+сбыт","WARM"]
[177,"Ярославская область","Ростовский муниципальный район","78637000","Городское поселение г.Ростов","78637101","28932227","ООО \"Газпром теплоэнерго Ярославль\"","7603060690","760301001","производство (некомбинированная выработка)+передача+сбыт","WARM"]
[178,"Ярославская область","Ростовский муниципальный район","78637000","Городское поселение г.Ростов","78637101","28507308","Филиал в Ярославской и Костромской областях ОАО междугородной и международной электрической связи \"Ростелеком\"","7707049388","760443001","производство (некомбинированная выработка)+передача+сбыт","WARM"]
[179,"Ярославская область","Ростовский муниципальный район","78637000","Городское поселение г.Ростов","78637101","26651562","Ярославский участок дирекции по тепловодоснабжению СЖД-филиала ОАО \"РЖД\" кот. ст. Ростов","7708503727","997650012","производство (некомбинированная выработка)+передача+сбыт","WARM"]
[180,"Ярославская область","Ростовский муниципальный район","78637000","Ишня сельское поселение","78637412","26901857","АО \"РЭУ\"","7714783092","332743001","производство (некомбинированная выработка)+передача+сбыт","WARM"]
[181,"Ярославская область","Ростовский муниципальный район","78637000","Ишня сельское поселение","78637412","26569087","АО \"Ярославская генерирующая компания\"","7604178769","760601001","производство (некомбинированная выработка)+передача+сбыт","WARM"]
[182,"Ярославская область","Ростовский муниципальный район","78637000","Ишня сельское поселение","78637412","28932227","ООО \"Газпром теплоэнерго Ярославль\"","7603060690","760301001","производство (некомбинированная выработка)+передача+сбыт","WARM"]
[183,"Ярославская область","Ростовский муниципальный район","78637000","Ишня сельское поселение","78637412","26649166","ООО \"Ростовавторемонт\"","7609023014","760901001","производство (некомбинированная выработка)+передача+сбыт","WARM"]
[184,"Ярославская область","Ростовский муниципальный район","78637000","Ишня сельское поселение","78637412","28507308","Филиал в Ярославской и Костромской областях ОАО междугородной и международной электрической связи \"Ростелеком\"","7707049388","760443001","производство (некомбинированная выработка)+передача+сбыт","WARM"]
[185,"Ярославская область","Ростовский муниципальный район","78637000","Петровское сельское поселение","78637441","26901857","АО \"РЭУ\"","7714783092","332743001","производство (некомбинированная выработка)+передача+сбыт","WARM"]
[186,"Ярославская область","Ростовский муниципальный район","78637000","Петровское сельское поселение","78637441","28507030","АО \"Яркоммунсервис\"","7602090950","760201001","производство (некомбинированная выработка)+передача+сбыт","WARM"]
[187,"Ярославская область","Ростовский муниципальный район","78637000","Петровское сельское поселение","78637441","26569087","АО \"Ярославская генерирующая компания\"","7604178769","760601001","производство (некомбинированная выработка)+передача+сбыт","WARM"]
[188,"Ярославская область","Ростовский муниципальный район","78637000","Петровское сельское поселение","78637441","26483149","ОАО \"ДЭП-27\"","7609023568","760901001","производство (некомбинированная выработка)+передача+сбыт","WARM"]
[189,"Ярославская область","Ростовский муниципальный район","78637000","Петровское сельское поселение","78637441","28932227","ООО \"Газпром теплоэнерго Ярославль\"","7603060690","760301001","производство (некомбинированная выработка)+передача+сбыт","WARM"]
[190,"Ярославская область","Ростовский муниципальный район","78637000","Петровское сельское поселение","78637441","28507308","Филиал в Ярославской и Костромской областях ОАО междугородной и международной электрической связи \"Ростелеком\"","7707049388","760443001","производство (некомбинированная выработка)+передача+сбыт","WARM"]
[191,"Ярославская область","Ростовский муниципальный район","78637000","Поречье-Рыбное сельское поселение","78637442","26901857","АО \"РЭУ\"","7714783092","332743001","производство (некомбинированная выработка)+передача+сбыт","WARM"]
[192,"Ярославская область","Ростовский муниципальный район","78637000","Поречье-Рыбное сельское поселение","78637442","26569087","АО \"Ярославская генерирующая компания\"","7604178769","760601001","производство (некомбинированная выработка)+передача+сбыт","WARM"]
[193,"Ярославская область","Ростовский муниципальный район","78637000","Поречье-Рыбное сельское поселение","78637442","26524658","ОАО \"Ростелеком\" центральный филиал территориальное управление №8","7707049388","760431001","производство (некомбинированная выработка)+передача+сбыт","WARM"]
[194,"Ярославская область","Ростовский муниципальный район","78637000","Поречье-Рыбное сельское поселение","78637442","28932227","ООО \"Газпром теплоэнерго Ярославль\"","7603060690","760301001","производство (некомбинированная выработка)+передача+сбыт","WARM"]
[195,"Ярославская область","Ростовский муниципальный район","78637000","Поречье-Рыбное сельское поселение","78637442","28982870","ООО \"ТеплоЭнергоСтройМонтаж\"","7606074821","762701001","производство (некомбинированная выработка)+сбыт","WARM"]
[196,"Ярославская область","Ростовский муниципальный район","78637000","Поречье-Рыбное сельское поселение","78637442","28507308","Филиал в Ярославской и Костромской областях ОАО междугородной и международной электрической связи \"Ростелеком\"","7707049388","760443001","производство (некомбинированная выработка)+передача+сбыт","WARM"]
[197,"Ярославская область","Ростовский муниципальный район","78637000","Поречье-Рыбное сельское поселение","78637442","26649247","Филиал в Ярославской и Костромской областях ОАО междугородной и международной электрической связи \"Ростелеком\"","7707049388","760443003","производство (некомбинированная выработка)+передача+сбыт","WARM"]
[198,"Ярославская область","Ростовский муниципальный район","78637000","Ростовский муниципальный район","78637000","26560525","АО \"ГУ ЖКХ\"","5116000922","511601001","производство (некомбинированная выработка)+сбыт","WARM"]
[199,"Ярославская область","Ростовский муниципальный район","78637000","Ростовский муниципальный район","78637000","26901857","АО \"РЭУ\"","7714783092","332743001","производство (некомбинированная выработка)+передача+сбыт","WARM"]
[200,"Ярославская область","Ростовский муниципальный район","78637000","Ростовский муниципальный район","78637000","26569087","АО \"Ярославская генерирующая компания\"","7604178769","760601001","производство (некомбинированная выработка)+передача+сбыт","WARM"]
[201,"Ярославская область","Ростовский муниципальный район","78637000","Ростовский муниципальный район","78637000","26483498","ГУП ЖКХ ЯО \"Яркоммунсервис\"","7604004508","760401001","производство (некомбинированная выработка)+передача+сбыт","WARM"]
[202,"Ярославская область","Ростовский муниципальный район","78637000","Ростовский муниципальный район","78637000","26483423","ГУП ЖКХ ЯО \"Яркоммунсервис\" (ГУЗ ЯО ДСС \"Итларь\")","7604004508","760932001","производство (некомбинированная выработка)+передача+сбыт","WARM"]
[203,"Ярославская область","Ростовский муниципальный район","78637000","Ростовский муниципальный район","78637000","26483431","ЗАО \"Атрус\"","7609002208","760901001","производство (некомбинированная выработка)+сбыт","WARM"]
[204,"Ярославская область","Ростовский муниципальный район","78637000","Ростовский муниципальный район","78637000","26483427","ЗАО \"Консервный завод \"Поречский\"","7609015486","760901001","производство (некомбинированная выработка)+передача+сбыт","WARM"]
[205,"Ярославская область","Ростовский муниципальный район","78637000","Ростовский муниципальный район","78637000","26483415","ЗАО \"Ростовавторемонт\"","7609019716","760901001","производство (некомбинированная выработка)+сбыт","WARM"]
[206,"Ярославская область","Ростовский муниципальный район","78637000","Ростовский муниципальный район","78637000","26525333","МУП \"Ростовская коммунальная энергетика\"","7604131880","760401001","производство (некомбинированная выработка)+передача+сбыт","WARM"]
[207,"Ярославская область","Ростовский муниципальный район","78637000","Ростовский муниципальный район","78637000","26483417","ОАО \"Петровский завод ЖБИ\"","7609012573","760901001","производство (некомбинированная выработка)+сбыт","WARM"]
[208,"Ярославская область","Ростовский муниципальный район","78637000","Ростовский муниципальный район","78637000","26524563","ОАО \"ТЭСС\" Семибратово","7603015835","760301002","производство (некомбинированная выработка)+передача+сбыт","WARM"]
[209,"Ярославская область","Ростовский муниципальный район","78637000","Ростовский муниципальный район","78637000","27712950","ОАО \"Яркоммунсервис\"","7604016214","760401001","производство (некомбинированная выработка)+передача+сбыт","WARM"]
[210,"Ярославская область","Ростовский муниципальный район","78637000","Ростовский муниципальный район","78637000","28932227","ООО \"Газпром теплоэнерго Ярославль\"","7603060690","760301001","производство (некомбинированная выработка)+передача+сбыт","WARM"]
[211,"Ярославская область","Ростовский муниципальный район","78637000","Ростовский муниципальный район","78637000","26483419","ООО \"РОМЗЭНЕРГО\"","7609018208","760901001","производство (некомбинированная выработка)+передача+сбыт","WARM"]
[212,"Ярославская область","Ростовский муниципальный район","78637000","Ростовский муниципальный район","78637000","27412481","ООО \"Энергетическая Компания \"ТеплоПром\"","7609024427","760901001","производство (некомбинированная выработка)+передача+сбыт","WARM"]
[213,"Ярославская область","Ростовский муниципальный район","78637000","Ростовский муниципальный район","78637000","26836275","Северная Дирекция по тепловодоснабжению структурное подразделение Центральной дирекции по тепловодоснабжению - филиала ОАО \"РЖД\"","7708503727","760445028","производство (некомбинированная выработка)","WARM"]
[214,"Ярославская область","Ростовский муниципальный район","78637000","Ростовский муниципальный район","78637000","28507308","Филиал в Ярославской и Костромской областях ОАО междугородной и международной электрической связи \"Ростелеком\"","7707049388","760443001","производство (некомбинированная выработка)+передача+сбыт","WARM"]
[215,"Ярославская область","Ростовский муниципальный район","78637000","Семибратово сельское поселение","78637447","26901857","АО \"РЭУ\"","7714783092","332743001","производство (некомбинированная выработка)+передача+сбыт","WARM"]
[216,"Ярославская область","Ростовский муниципальный район","78637000","Семибратово сельское поселение","78637447","26569087","АО \"Ярославская генерирующая компания\"","7604178769","760601001","производство (некомбинированная выработка)+передача+сбыт","WARM"]
[217,"Ярославская область","Ростовский муниципальный район","78637000","Семибратово сельское поселение","78637447","26483192","ОАО \"ТЭСС\"","7603015835","760301001","производство (некомбинированная выработка)+передача+сбыт","WARM"]
[218,"Ярославская область","Ростовский муниципальный район","78637000","Семибратово сельское поселение","78637447","26483403","ОАО \"Фильтры индустриальные газоочистные\"","7609001719","760901001","Передача+Сбыт","WARM"]
[219,"Ярославская область","Ростовский муниципальный район","78637000","Семибратово сельское поселение","78637447","28932227","ООО \"Газпром теплоэнерго Ярославль\"","7603060690","760301001","производство (некомбинированная выработка)+передача+сбыт","WARM"]
[220,"Ярославская область","Ростовский муниципальный район","78637000","Семибратово сельское поселение","78637447","28507308","Филиал в Ярославской и Костромской областях ОАО междугородной и международной электрической связи \"Ростелеком\"","7707049388","760443001","производство (некомбинированная выработка)+передача+сбыт","WARM"]
[221,"Ярославская область","Рыбинский муниципальный район","78640000","Арефинское сельское поселение","78640410","28267865","ООО  «Котельная завода «Пролетарская свобода»","7604077129","760401001","производство (некомбинированная выработка)+передача+сбыт","WARM"]
[222,"Ярославская область","Рыбинский муниципальный район","78640000","Арефинское сельское поселение","78640410","26649369","ООО \"Котельная завода \"Пролетарская свобода\" с. Арефино","7604077129","761001001","производство (некомбинированная выработка)+передача+сбыт","WARM"]
[223,"Ярославская область","Рыбинский муниципальный район","78640000","Арефинское сельское поселение","78640410","28856606","ООО \"Ориентир\"","7604234847","760401001","производство (некомбинированная выработка)","WARM"]
[224,"Ярославская область","Рыбинский муниципальный район","78640000","Арефинское сельское поселение","78640410","26483204","ООО \"ТехЭкспо\"","7604122607","760401001","производство (некомбинированная выработка)+передача+сбыт","WARM"]
[225,"Ярославская область","Рыбинский муниципальный район","78640000","Волжское сельское поселение","78640415","26648637","МБУ \"Волжское ЖКХ\"","7610088538","761001001","производство (некомбинированная выработка)+передача+сбыт","WARM"]
[226,"Ярославская область","Рыбинский муниципальный район","78640000","Волжское сельское поселение","78640415","28856606","ООО \"Ориентир\"","7604234847","760401001","производство (некомбинированная выработка)","WARM"]
[227,"Ярославская область","Рыбинский муниципальный район","78640000","Глебовское сельское поселение","78640443","28499729","МУП \"Волжское ЖКХ\"","7610103190","761001001","Передача+Сбыт","WARM"]
[228,"Ярославская область","Рыбинский муниципальный район","78640000","Глебовское сельское поселение","78640443","28499729","МУП \"Волжское ЖКХ\"","7610103190","761001001","производство (некомбинированная выработка)+передача+сбыт","WARM"]
[229,"Ярославская область","Рыбинский муниципальный район","78640000","Глебовское сельское поселение","78640443","28499729","МУП \"Волжское ЖКХ\"","7610103190","761001001","производство комбинированная выработка","WARM"]
[230,"Ярославская область","Рыбинский муниципальный район","78640000","Глебовское сельское поселение","78640443","28856606","ООО \"Ориентир\"","7604234847","760401001","производство (некомбинированная выработка)","WARM"]
[231,"Ярославская область","Рыбинский муниципальный район","78640000","Городское поселение Песочное","78640455","28856606","ООО \"Ориентир\"","7604234847","760401001","производство (некомбинированная выработка)","WARM"]
[232,"Ярославская область","Рыбинский муниципальный район","78640000","Каменниковское сельское поселение","78640425","26483304","МУП РМР ЯО \"Коммунальные системы\"","7610074824","761001001","производство (некомбинированная выработка)+передача+сбыт","WARM"]
[233,"Ярославская область","Рыбинский муниципальный район","78640000","Каменниковское сельское поселение","78640425","28856606","ООО \"Ориентир\"","7604234847","760401001","производство (некомбинированная выработка)","WARM"]
[234,"Ярославская область","Рыбинский муниципальный район","78640000","Назаровское сельское поселение","78640430","28981279","ООО \"ЛКМ\"","7610110198","761001001","производство (некомбинированная выработка)+сбыт","WARM"]
[235,"Ярославская область","Рыбинский муниципальный район","78640000","Назаровское сельское поселение","78640430","28856606","ООО \"Ориентир\"","7604234847","760401001","производство (некомбинированная выработка)","WARM"]
[236,"Ярославская область","Рыбинский муниципальный район","78640000","Огарковское сельское поселение","78640440","28267865","ООО  «Котельная завода «Пролетарская свобода»","7604077129","760401001","производство (некомбинированная выработка)+передача+сбыт","WARM"]
[237,"Ярославская область","Рыбинский муниципальный район","78640000","Огарковское сельское поселение","78640440","28856606","ООО \"Ориентир\"","7604234847","760401001","производство (некомбинированная выработка)","WARM"]
[238,"Ярославская область","Рыбинский муниципальный район","78640000","Огарковское сельское поселение","78640440","30794646","ООО \"Промцентр\"","7604234854","760401001","производство (некомбинированная выработка)","WARM"]
[239,"Ярославская область","Рыбинский муниципальный район","78640000","Октябрьское сельское поселение","78640420","26525317","ООО \"Лесла\"","7610015917","761001001","Передача+Сбыт","WARM"]
[240,"Ярославская область","Рыбинский муниципальный район","78640000","Октябрьское сельское поселение","78640420","26525317","ООО \"Лесла\"","7610015917","761001001","производство (некомбинированная выработка)+передача+сбыт","WARM"]
[241,"Ярославская область","Рыбинский муниципальный район","78640000","Октябрьское сельское поселение","78640420","26525317","ООО \"Лесла\"","7610015917","761001001","производство комбинированная выработка","WARM"]
[242,"Ярославская область","Рыбинский муниципальный район","78640000","Октябрьское сельское поселение","78640420","28856606","ООО \"Ориентир\"","7604234847","760401001","производство (некомбинированная выработка)","WARM"]
[243,"Ярославская область","Рыбинский муниципальный район","78640000","Покровское сельское поселение","78640435","28507030","АО \"Яркоммунсервис\"","7602090950","760201001","производство (некомбинированная выработка)+передача+сбыт","WARM"]
[244,"Ярославская область","Рыбинский муниципальный район","78640000","Покровское сельское поселение","78640435","28856606","ООО \"Ориентир\"","7604234847","760401001","производство (некомбинированная выработка)","WARM"]
[245,"Ярославская область","Рыбинский муниципальный район","78640000","Рыбинский муниципальный район","78640000","26560525","АО \"ГУ ЖКХ\"","5116000922","511601001","производство (некомбинированная выработка)+сбыт","WARM"]
[246,"Ярославская область","Рыбинский муниципальный район","78640000","Рыбинский муниципальный район","78640000","26483401","АО \"Рыбинский завод приборостроения\"","7610062970","761001001","производство (некомбинированная выработка)+передача","WARM"]
[247,"Ярославская область","Рыбинский муниципальный район","78640000","Рыбинский муниципальный район","78640000","26483498","ГУП ЖКХ ЯО \"Яркоммунсервис\"","7604004508","760401001","производство (некомбинированная выработка)+передача+сбыт","WARM"]
[248,"Ярославская область","Рыбинский муниципальный район","78640000","Рыбинский муниципальный район","78640000","26649196","ГУП ЖКХ ЯО \"Яркоммунсервис\" пос. Искра Октября","7604004508","762132007","производство (некомбинированная выработка)+сбыт","WARM"]
[249,"Ярославская область","Рыбинский муниципальный район","78640000","Рыбинский муниципальный район","78640000","26483294","ЗАО \"Залесье\"","7610043640","761001001","производство (некомбинированная выработка)+передача+сбыт","WARM"]
[250,"Ярославская область","Рыбинский муниципальный район","78640000","Рыбинский муниципальный район","78640000","26525326","ЗАО \"Рыбинсклессервис\"","7610050037","761001001","Передача+Сбыт","WARM"]
[251,"Ярославская область","Рыбинский муниципальный район","78640000","Рыбинский муниципальный район","78640000","26525326","ЗАО \"Рыбинсклессервис\"","7610050037","761001001","производство (некомбинированная выработка)+передача+сбыт","WARM"]
[252,"Ярославская область","Рыбинский муниципальный район","78640000","Рыбинский муниципальный район","78640000","26525326","ЗАО \"Рыбинсклессервис\"","7610050037","761001001","производство комбинированная выработка","WARM"]
[253,"Ярославская область","Рыбинский муниципальный район","78640000","Рыбинский муниципальный район","78640000","26649288","ЗАО \"Санаторий имени Воровского\"","7626001860","761001001","производство (некомбинированная выработка)+передача+сбыт","WARM"]
[254,"Ярославская область","Рыбинский муниципальный район","78640000","Рыбинский муниципальный район","78640000","26483306","МУП РМР ЯО \"Каменники\"","7610030986","761001001","производство (некомбинированная выработка)+передача+сбыт","WARM"]
[255,"Ярославская область","Рыбинский муниципальный район","78640000","Рыбинский муниципальный район","78640000","26526765","МУП РМР ЯО \"Каменники\" Арефино","7610030986","761001003","производство (некомбинированная выработка)+передача","WARM"]
[256,"Ярославская область","Рыбинский муниципальный район","78640000","Рыбинский муниципальный район","78640000","26525320","МУП РМР ЯО \"Каменники\" передача","7610030986","761001002","Передача","WARM"]
[257,"Ярославская область","Рыбинский муниципальный район","78640000","Рыбинский муниципальный район","78640000","26483304","МУП РМР ЯО \"Коммунальные системы\"","7610074824","761001001","производство (некомбинированная выработка)+передача+сбыт","WARM"]
[258,"Ярославская область","Рыбинский муниципальный район","78640000","Рыбинский муниципальный район","78640000","30345479","МУП РМР ЯО \"Система ЖКХ\"","7610088016","761001001","производство (некомбинированная выработка)+передача+сбыт","WARM"]
[259,"Ярославская область","Рыбинский муниципальный район","78640000","Рыбинский муниципальный район","78640000","27712950","ОАО \"Яркоммунсервис\"","7604016214","760401001","производство (некомбинированная выработка)+передача+сбыт","WARM"]
[260,"Ярославская область","Рыбинский муниципальный район","78640000","Рыбинский муниципальный район","78640000","27573925","ОАО \"Ярославский бройлер\"","7610049497","761001001","Передача+Сбыт","WARM"]
[261,"Ярославская область","Рыбинский муниципальный район","78640000","Рыбинский муниципальный район","78640000","26649376","ООО \"Котельная завода \"Пролетарская свобода\" д. Милюшино","7604077129","761001002","производство (некомбинированная выработка)+передача+сбыт","WARM"]
[262,"Ярославская область","Рыбинский муниципальный район","78640000","Рыбинский муниципальный район","78640000","26525317","ООО \"Лесла\"","7610015917","761001001","Передача+Сбыт","WARM"]
[263,"Ярославская область","Рыбинский муниципальный район","78640000","Рыбинский муниципальный район","78640000","26525317","ООО \"Лесла\"","7610015917","761001001","производство (некомбинированная выработка)+передача+сбыт","WARM"]
[264,"Ярославская область","Рыбинский муниципальный район","78640000","Рыбинский муниципальный район","78640000","26525317","ООО \"Лесла\"","7610015917","761001001","производство комбинированная выработка","WARM"]
[265,"Ярославская область","Рыбинский муниципальный район","78640000","Рыбинский муниципальный район","78640000","28856606","ООО \"Ориентир\"","7604234847","760401001","производство (некомбинированная выработка)","WARM"]
[266,"Ярославская область","Рыбинский муниципальный район","78640000","Рыбинский муниципальный район","78640000","30794646","ООО \"Промцентр\"","7604234854","760401001","производство (некомбинированная выработка)","WARM"]
[267,"Ярославская область","Рыбинский муниципальный район","78640000","Рыбинский муниципальный район","78640000","26483298","ООО \"Региональная Теплогенерирующая Компания №1\" Судоверфь","7719675887","761901001","производство (некомбинированная выработка)+передача+сбыт","WARM"]
[268,"Ярославская область","Рыбинский муниципальный район","78640000","Рыбинский муниципальный район","78640000","26525403","ООО \"Региональная Теплогенерирующая компания №1 Каменники","7719675887","761001001","производство (некомбинированная выработка)+передача+сбыт","WARM"]
[269,"Ярославская область","Рыбинский муниципальный район","78640000","Рыбинский муниципальный район","78640000","26483296","ООО \"Санаторий \"Черная речка\"","7610057882","761001001","производство (некомбинированная выработка)+передача+сбыт","WARM"]
[270,"Ярославская область","Рыбинский муниципальный район","78640000","Рыбинский муниципальный район","78640000","26483204","ООО \"ТехЭкспо\"","7604122607","760401001","производство (некомбинированная выработка)+передача+сбыт","WARM"]
[271,"Ярославская область","Рыбинский муниципальный район","78640000","Рыбинский муниципальный район","78640000","26483308","СПК \"Рыбинский\"","7610041748","761001001","производство (некомбинированная выработка)+передача+сбыт","WARM"]
[272,"Ярославская область","Рыбинский муниципальный район","78640000","Судоверфское сельское поселение","78640452","26901857","АО \"РЭУ\"","7714783092","332743001","производство (некомбинированная выработка)+передача+сбыт","WARM"]
[273,"Ярославская область","Рыбинский муниципальный район","78640000","Судоверфское сельское поселение","78640452","28856606","ООО \"Ориентир\"","7604234847","760401001","производство (некомбинированная выработка)","WARM"]
[274,"Ярославская область","Рыбинский муниципальный район","78640000","Тихменевское сельское поселение","78640447","26650315","ООО \"Лесла\"","7610015917","761001002","производство (некомбинированная выработка)+передача+сбыт","WARM"]
[275,"Ярославская область","Рыбинский муниципальный район","78640000","Тихменевское сельское поселение","78640447","26525317","ООО \"Лесла\"","7610015917","761001001","Передача+Сбыт","WARM"]
[276,"Ярославская область","Рыбинский муниципальный район","78640000","Тихменевское сельское поселение","78640447","26525317","ООО \"Лесла\"","7610015917","761001001","производство (некомбинированная выработка)+передача+сбыт","WARM"]
[277,"Ярославская область","Рыбинский муниципальный район","78640000","Тихменевское сельское поселение","78640447","26525317","ООО \"Лесла\"","7610015917","761001001","производство комбинированная выработка","WARM"]
[278,"Ярославская область","Рыбинский муниципальный район","78640000","Тихменевское сельское поселение","78640447","28856606","ООО \"Ориентир\"","7604234847","760401001","производство (некомбинированная выработка)","WARM"]
[279,"Ярославская область","Тутаевский муниципальный район","78643000","Артемьевское сельское поселение","78643405","26901857","АО \"РЭУ\"","7714783092","332743001","производство (некомбинированная выработка)+передача+сбыт","WARM"]
[280,"Ярославская область","Тутаевский муниципальный район","78643000","Артемьевское сельское поселение","78643405","28443212","МУП ТМР \"Тутаевские коммунальные системы\"","7611022836","761101001","производство (некомбинированная выработка)+передача+сбыт","WARM"]
[281,"Ярославская область","Тутаевский муниципальный район","78643000","Артемьевское сельское поселение","78643405","26319496","ОАО \"Ярославский нефтеперерабатывающий завод им. Д.И. Менделеева\"","7611002100","761101001","производство (некомбинированная выработка)+передача+сбыт","WARM"]
[282,"Ярославская область","Тутаевский муниципальный район","78643000","Городское поселение г.Тутаев","78643101","26901857","АО \"РЭУ\"","7714783092","332743001","производство (некомбинированная выработка)+передача+сбыт","WARM"]
[283,"Ярославская область","Тутаевский муниципальный район","78643000","Городское поселение г.Тутаев","78643101","28134686","АО \"Тутаевская ПГУ\"","7611020204","761101001","Передача","WARM"]
[284,"Ярославская область","Тутаевский муниципальный район","78643000","Городское поселение г.Тутаев","78643101","28134686","АО \"Тутаевская ПГУ\"","7611020204","761101001","производство (некомбинированная выработка)+передача","WARM"]
[285,"Ярославская область","Тутаевский муниципальный район","78643000","Городское поселение г.Тутаев","78643101","26569087","АО \"Ярославская генерирующая компания\"","7604178769","760601001","производство (некомбинированная выработка)+передача+сбыт","WARM"]
[286,"Ярославская область","Тутаевский муниципальный район","78643000","Городское поселение г.Тутаев","78643101","26483284","МУП \"Теплоэнергосеть\"","7611013729","761101001","производство (некомбинированная выработка)+передача+сбыт","WARM"]
[287,"Ярославская область","Тутаевский муниципальный район","78643000","Городское поселение г.Тутаев","78643101","26483288","МУП ЖКХ г. Тутаева","7611002276","761101001","производство (некомбинированная выработка)+передача+сбыт","WARM"]
[288,"Ярославская область","Тутаевский муниципальный район","78643000","Городское поселение г.Тутаев","78643101","28443212","МУП ТМР \"Тутаевские коммунальные системы\"","7611022836","761101001","производство (некомбинированная выработка)+передача+сбыт","WARM"]
[289,"Ярославская область","Тутаевский муниципальный район","78643000","Городское поселение г.Тутаев","78643101","26569085","ОАО \"Ярославская генерирующая компания\"","7604178769","761101001","производство (некомбинированная выработка)+передача+сбыт","WARM"]
[290,"Ярославская область","Тутаевский муниципальный район","78643000","Городское поселение г.Тутаев","78643101","26319496","ОАО \"Ярославский нефтеперерабатывающий завод им. Д.И. Менделеева\"","7611002100","761101001","производство (некомбинированная выработка)+передача+сбыт","WARM"]
[291,"Ярославская область","Тутаевский муниципальный район","78643000","Константиновское сельское поселение","78643420","26901857","АО \"РЭУ\"","7714783092","332743001","производство (некомбинированная выработка)+передача+сбыт","WARM"]
[292,"Ярославская область","Тутаевский муниципальный район","78643000","Константиновское сельское поселение","78643420","28507030","АО \"Яркоммунсервис\"","7602090950","760201001","производство (некомбинированная выработка)+передача+сбыт","WARM"]
[293,"Ярославская область","Тутаевский муниципальный район","78643000","Константиновское сельское поселение","78643420","26569087","АО \"Ярославская генерирующая компания\"","7604178769","760601001","производство (некомбинированная выработка)+передача+сбыт","WARM"]
[294,"Ярославская область","Тутаевский муниципальный район","78643000","Константиновское сельское поселение","78643420","28443212","МУП ТМР \"Тутаевские коммунальные системы\"","7611022836","761101001","производство (некомбинированная выработка)+передача+сбыт","WARM"]
[295,"Ярославская область","Тутаевский муниципальный район","78643000","Константиновское сельское поселение","78643420","27712950","ОАО \"Яркоммунсервис\"","7604016214","760401001","производство (некомбинированная выработка)+передача+сбыт","WARM"]
[296,"Ярославская область","Тутаевский муниципальный район","78643000","Константиновское сельское поселение","78643420","26319496","ОАО \"Ярославский нефтеперерабатывающий завод им. Д.И. Менделеева\"","7611002100","761101001","производство (некомбинированная выработка)+передача+сбыт","WARM"]
[297,"Ярославская область","Тутаевский муниципальный район","78643000","Левобережное сельское поселение","78643460","26901857","АО \"РЭУ\"","7714783092","332743001","производство (некомбинированная выработка)+передача+сбыт","WARM"]
[298,"Ярославская область","Тутаевский муниципальный район","78643000","Левобережное сельское поселение","78643460","28507030","АО \"Яркоммунсервис\"","7602090950","760201001","производство (некомбинированная выработка)+передача+сбыт","WARM"]
[299,"Ярославская область","Тутаевский муниципальный район","78643000","Левобережное сельское поселение","78643460","26483498","ГУП ЖКХ ЯО \"Яркоммунсервис\"","7604004508","760401001","производство (некомбинированная выработка)+передача+сбыт","WARM"]
[300,"Ярославская область","Тутаевский муниципальный район","78643000","Левобережное сельское поселение","78643460","28443212","МУП ТМР \"Тутаевские коммунальные системы\"","7611022836","761101001","производство (некомбинированная выработка)+передача+сбыт","WARM"]
[301,"Ярославская область","Тутаевский муниципальный район","78643000","Левобережное сельское поселение","78643460","27712950","ОАО \"Яркоммунсервис\"","7604016214","760401001","производство (некомбинированная выработка)+передача+сбыт","WARM"]
[302,"Ярославская область","Тутаевский муниципальный район","78643000","Левобережное сельское поселение","78643460","26319496","ОАО \"Ярославский нефтеперерабатывающий завод им. Д.И. Менделеева\"","7611002100","761101001","производство (некомбинированная выработка)+передача+сбыт","WARM"]
[303,"Ярославская область","Тутаевский муниципальный район","78643000","Левобережное сельское поселение","78643460","26525371","ООО \"УК Левобережье\"","7611018780","761101001","производство (некомбинированная выработка)+передача+сбыт","WARM"]
[304,"Ярославская область","Тутаевский муниципальный район","78643000","Тутаевский муниципальный район","78643000","26560525","АО \"ГУ ЖКХ\"","5116000922","511601001","производство (некомбинированная выработка)+сбыт","WARM"]
[305,"Ярославская область","Тутаевский муниципальный район","78643000","Тутаевский муниципальный район","78643000","26901857","АО \"РЭУ\"","7714783092","332743001","производство (некомбинированная выработка)+передача+сбыт","WARM"]
[306,"Ярославская область","Тутаевский муниципальный район","78643000","Тутаевский муниципальный район","78643000","26569087","АО \"Ярославская генерирующая компания\"","7604178769","760601001","производство (некомбинированная выработка)+передача+сбыт","WARM"]
[307,"Ярославская область","Тутаевский муниципальный район","78643000","Тутаевский муниципальный район","78643000","26483498","ГУП ЖКХ ЯО \"Яркоммунсервис\"","7604004508","760401001","производство (некомбинированная выработка)+передача+сбыт","WARM"]
[308,"Ярославская область","Тутаевский муниципальный район","78643000","Тутаевский муниципальный район","78643000","26483282","ГУП ЖКХ ЯО \"Яркоммунсервис\" (Красноборская школа)","7604004508","761132001","производство (некомбинированная выработка)+передача+сбыт","WARM"]
[309,"Ярославская область","Тутаевский муниципальный район","78643000","Тутаевский муниципальный район","78643000","26649201","ГУП ЖКХ ЯО \"Яркоммунсервис\" пос. Микляиха","7604004508","762132008","производство (некомбинированная выработка)+передача+сбыт","WARM"]
[310,"Ярославская область","Тутаевский муниципальный район","78643000","Тутаевский муниципальный район","78643000","26483290","МУП ТМР \"Артемьевское ЖКХ\"","7611017385","761101001","производство (некомбинированная выработка)+передача+сбыт","WARM"]
[311,"Ярославская область","Тутаевский муниципальный район","78643000","Тутаевский муниципальный район","78643000","28443212","МУП ТМР \"Тутаевские коммунальные системы\"","7611022836","761101001","производство (некомбинированная выработка)+передача+сбыт","WARM"]
[312,"Ярославская область","Тутаевский муниципальный район","78643000","Тутаевский муниципальный район","78643000","26483286","МУП ТМР \"Чебаковское ЖКХ\"","7611017392","761101001","производство (некомбинированная выработка)+передача+сбыт","WARM"]
[313,"Ярославская область","Тутаевский муниципальный район","78643000","Тутаевский муниципальный район","78643000","27712950","ОАО \"Яркоммунсервис\"","7604016214","760401001","производство (некомбинированная выработка)+передача+сбыт","WARM"]
[314,"Ярославская область","Тутаевский муниципальный район","78643000","Тутаевский муниципальный район","78643000","26319496","ОАО \"Ярославский нефтеперерабатывающий завод им. Д.И. Менделеева\"","7611002100","761101001","производство (некомбинированная выработка)+передача+сбыт","WARM"]
[315,"Ярославская область","Тутаевский муниципальный район","78643000","Тутаевский муниципальный район","78643000","26525371","ООО \"УК Левобережье\"","7611018780","761101001","производство (некомбинированная выработка)+передача+сбыт","WARM"]
[316,"Ярославская область","Тутаевский муниципальный район","78643000","Тутаевский муниципальный район","78643000","26649232","ООО \"УК Левобережье\" передача пос. Краснй Бор","7611018780","761101002","Передача","WARM"]
[317,"Ярославская область","Тутаевский муниципальный район","78643000","Чебаковское сельское поселение","78643450","26901857","АО \"РЭУ\"","7714783092","332743001","производство (некомбинированная выработка)+передача+сбыт","WARM"]
[318,"Ярославская область","Тутаевский муниципальный район","78643000","Чебаковское сельское поселение","78643450","28443212","МУП ТМР \"Тутаевские коммунальные системы\"","7611022836","761101001","производство (некомбинированная выработка)+передача+сбыт","WARM"]
[319,"Ярославская область","Тутаевский муниципальный район","78643000","Чебаковское сельское поселение","78643450","26319496","ОАО \"Ярославский нефтеперерабатывающий завод им. Д.И. Менделеева\"","7611002100","761101001","производство (некомбинированная выработка)+передача+сбыт","WARM"]
[320,"Ярославская область","Угличский муниципальный район","78646000","Головинское сельское поселение","78646440","26901857","АО \"РЭУ\"","7714783092","332743001","производство (некомбинированная выработка)+передача+сбыт","WARM"]
[321,"Ярославская область","Угличский муниципальный район","78646000","Головинское сельское поселение","78646440","26569087","АО \"Ярославская генерирующая компания\"","7604178769","760601001","производство (некомбинированная выработка)+передача+сбыт","WARM"]
[322,"Ярославская область","Угличский муниципальный район","78646000","Головинское сельское поселение","78646440","28932227","ООО \"Газпром теплоэнерго Ярославль\"","7603060690","760301001","производство (некомбинированная выработка)+передача+сбыт","WARM"]
[323,"Ярославская область","Угличский муниципальный район","78646000","Городское поселение г.Углич","78646101","26560525","АО \"ГУ ЖКХ\"","5116000922","511601001","Передача","WARM"]
[324,"Ярославская область","Угличский муниципальный район","78646000","Городское поселение г.Углич","78646101","26901857","АО \"РЭУ\"","7714783092","332743001","производство (некомбинированная выработка)+передача+сбыт","WARM"]
[325,"Ярославская область","Угличский муниципальный район","78646000","Городское поселение г.Углич","78646101","26569087","АО \"Ярославская генерирующая компания\"","7604178769","760601001","производство (некомбинированная выработка)+передача+сбыт","WARM"]
[326,"Ярославская область","Угличский муниципальный район","78646000","Городское поселение г.Углич","78646101","26483240","МУП \"Предприятие коммунально-бытового обслуживания\"","7612039712","761201001","Передача+Сбыт","WARM"]
[327,"Ярославская область","Угличский муниципальный район","78646000","Городское поселение г.Углич","78646101","26483240","МУП \"Предприятие коммунально-бытового обслуживания\"","7612039712","761201001","производство (некомбинированная выработка)","WARM"]
[328,"Ярославская область","Угличский муниципальный район","78646000","Городское поселение г.Углич","78646101","26483240","МУП \"Предприятие коммунально-бытового обслуживания\"","7612039712","761201001","производство (некомбинированная выработка)+передача+сбыт","WARM"]
[329,"Ярославская область","Угличский муниципальный район","78646000","Городское поселение г.Углич","78646101","27569386","МУП \"Тепловые сети\"","7612043980","761201001","Передача","WARM"]
[330,"Ярославская область","Угличский муниципальный район","78646000","Городское поселение г.Углич","78646101","30791907","МУП «Энергоресурс» УМР","7612046371","761201001","производство (некомбинированная выработка)","WARM"]
[331,"Ярославская область","Угличский муниципальный район","78646000","Городское поселение г.Углич","78646101","26483192","ОАО \"ТЭСС\"","7603015835","760301001","производство (некомбинированная выработка)+передача+сбыт","WARM"]
[332,"Ярославская область","Угличский муниципальный район","78646000","Городское поселение г.Углич","78646101","26649168","ОАО \"ТЭСС\" г. Углич (передача)","7603015835","760301004","Передача","WARM"]
[333,"Ярославская область","Угличский муниципальный район","78646000","Городское поселение г.Углич","78646101","26483242","ОАО \"Угличское межрайонное производственное ремонтно-эксплуатационное объединение мелиорации и водного хозяйства\"\"УМПРЭО\"","7612034810","761201001","производство (некомбинированная выработка)+передача+сбыт","WARM"]
[334,"Ярославская область","Угличский муниципальный район","78646000","Городское поселение г.Углич","78646101","26569082","ОАО \"Ярославская генерирующая компания\" передача т/э","7604178769","761202001","Передача+Сбыт","WARM"]
[335,"Ярославская область","Угличский муниципальный район","78646000","Городское поселение г.Углич","78646101","28932227","ООО \"Газпром теплоэнерго Ярославль\"","7603060690","760301001","производство (некомбинированная выработка)+передача+сбыт","WARM"]
[336,"Ярославская область","Угличский муниципальный район","78646000","Городское поселение г.Углич","78646101","26319525","ООО \"Механический завод \"Чайка\"","7612034087","761201001","производство (некомбинированная выработка)+передача","WARM"]
[337,"Ярославская область","Угличский муниципальный район","78646000","Городское поселение г.Углич","78646101","26483244","ООО \"Угличский завод минеральной воды\"","7612003339","761201001","производство (некомбинированная выработка)+передача+сбыт","WARM"]
[338,"Ярославская область","Угличский муниципальный район","78646000","Городское поселение г.Углич","78646101","30373563","ООО \"Центр внедрения возобновляемых источников энергии\"","7602098469","760201001","производство (некомбинированная выработка)","WARM"]
[339,"Ярославская область","Угличский муниципальный район","78646000","Городское поселение г.Углич","78646101","26649294","Филиал ОАО \"ФСК ЕЭС\"- Валдайское предприятие магистральных электрических сетей","4716016979","997450001","производство (некомбинированная выработка)+передача+сбыт","WARM"]
[340,"Ярославская область","Угличский муниципальный район","78646000","Ильинское сельское поселение","78646420","26901857","АО \"РЭУ\"","7714783092","332743001","производство (некомбинированная выработка)+передача+сбыт","WARM"]
[341,"Ярославская область","Угличский муниципальный район","78646000","Ильинское сельское поселение","78646420","26569087","АО \"Ярославская генерирующая компания\"","7604178769","760601001","производство (некомбинированная выработка)+передача+сбыт","WARM"]
[342,"Ярославская область","Угличский муниципальный район","78646000","Ильинское сельское поселение","78646420","28932227","ООО \"Газпром теплоэнерго Ярославль\"","7603060690","760301001","производство (некомбинированная выработка)+передача+сбыт","WARM"]
[343,"Ярославская область","Угличский муниципальный район","78646000","Отрадновское сельское поселение","78646475","26901857","АО \"РЭУ\"","7714783092","332743001","производство (некомбинированная выработка)+передача+сбыт","WARM"]
[344,"Ярославская область","Угличский муниципальный район","78646000","Отрадновское сельское поселение","78646475","26569087","АО \"Ярославская генерирующая компания\"","7604178769","760601001","производство (некомбинированная выработка)+передача+сбыт","WARM"]
[345,"Ярославская область","Угличский муниципальный район","78646000","Отрадновское сельское поселение","78646475","28932227","ООО \"Газпром теплоэнерго Ярославль\"","7603060690","760301001","производство (некомбинированная выработка)+передача+сбыт","WARM"]
[346,"Ярославская область","Угличский муниципальный район","78646000","Слободское сельское поселение","78646410","26901857","АО \"РЭУ\"","7714783092","332743001","производство (некомбинированная выработка)+передача+сбыт","WARM"]
[347,"Ярославская область","Угличский муниципальный район","78646000","Слободское сельское поселение","78646410","26569087","АО \"Ярославская генерирующая компания\"","7604178769","760601001","производство (некомбинированная выработка)+передача+сбыт","WARM"]
[348,"Ярославская область","Угличский муниципальный район","78646000","Слободское сельское поселение","78646410","28932227","ООО \"Газпром теплоэнерго Ярославль\"","7603060690","760301001","производство (некомбинированная выработка)+передача+сбыт","WARM"]
[349,"Ярославская область","Угличский муниципальный район","78646000","Угличский муниципальный район","78646000","26560525","АО \"ГУ ЖКХ\"","5116000922","511601001","производство (некомбинированная выработка)+сбыт","WARM"]
[350,"Ярославская область","Угличский муниципальный район","78646000","Угличский муниципальный район","78646000","26901857","АО \"РЭУ\"","7714783092","332743001","производство (некомбинированная выработка)+передача+сбыт","WARM"]
[351,"Ярославская область","Угличский муниципальный район","78646000","Угличский муниципальный район","78646000","26569087","АО \"Ярославская генерирующая компания\"","7604178769","760601001","производство (некомбинированная выработка)+передача+сбыт","WARM"]
[352,"Ярославская область","Угличский муниципальный район","78646000","Угличский муниципальный район","78646000","26483232","ЗАО \"Угличэнергия\"","7612036704","761201001","производство (некомбинированная выработка)+передача+сбыт","WARM"]
[353,"Ярославская область","Угличский муниципальный район","78646000","Угличский муниципальный район","78646000","26525357","МАУ \"Тепловые сети\"","7612034337","761201002","Передача","WARM"]
[354,"Ярославская область","Угличский муниципальный район","78646000","Угличский муниципальный район","78646000","26483240","МУП \"Предприятие коммунально-бытового обслуживания\"","7612039712","761201001","производство (некомбинированная выработка)+передача+сбыт","WARM"]
[355,"Ярославская область","Угличский муниципальный район","78646000","Угличский муниципальный район","78646000","26483264","МУП \"Энергетик\"","7612000338","761201001","производство (некомбинированная выработка)+передача+сбыт","WARM"]
[356,"Ярославская область","Угличский муниципальный район","78646000","Угличский муниципальный район","78646000","26483192","ОАО \"ТЭСС\"","7603015835","760301001","производство (некомбинированная выработка)+передача+сбыт","WARM"]
[357,"Ярославская область","Угличский муниципальный район","78646000","Угличский муниципальный район","78646000","26524565","ОАО \"ТЭСС\" Углич","7603015835","760301003","производство (некомбинированная выработка)+передача+сбыт","WARM"]
[358,"Ярославская область","Угличский муниципальный район","78646000","Угличский муниципальный район","78646000","26483258","ОАО \"Угличречпорт\"","7612011178","761201001","производство (некомбинированная выработка)+передача+сбыт","WARM"]
[359,"Ярославская область","Угличский муниципальный район","78646000","Угличский муниципальный район","78646000","28932227","ООО \"Газпром теплоэнерго Ярославль\"","7603060690","760301001","производство (некомбинированная выработка)+передача+сбыт","WARM"]
[360,"Ярославская область","Угличский муниципальный район","78646000","Угличский муниципальный район","78646000","28459632","ООО \"УМПРЭО\"","7612038469","761201001","производство (некомбинированная выработка)+передача+сбыт","WARM"]
[361,"Ярославская область","Угличский муниципальный район","78646000","Угличский муниципальный район","78646000","26483256","ООО \"Угличский экспериментальный ремонтно-механический завод\"","7612033358","761201001","производство (некомбинированная выработка)+передача+сбыт","WARM"]
[362,"Ярославская область","Угличский муниципальный район","78646000","Угличский муниципальный район","78646000","27971145","ООО \"Энергокомпания\"","7612044470","761201001","производство (некомбинированная выработка)+передача+сбыт","WARM"]
[363,"Ярославская область","Угличский муниципальный район","78646000","Угличский муниципальный район","78646000","26483252","ФБУ ИК-3 УФСИН РФ по Ярославской области","7612010960","761201002","производство (некомбинированная выработка)+передача+сбыт","WARM"]
[364,"Ярославская область","Угличский муниципальный район","78646000","Угличский муниципальный район","78646000","26483238","ФГУП Экспериментальный сыродельный завод","7612002423","761201001","производство (некомбинированная выработка)","WARM"]
[365,"Ярославская область","Угличский муниципальный район","78646000","Угличский муниципальный район","78646000","26483248","Ярославское отделение ТОи РМЭС Валдайского предприятия филиала ОАО \"Главсетьсервис ЕНЭС\" Центральный","7719665783","995231001","производство (некомбинированная выработка)+передача+сбыт","WARM"]
[366,"Ярославская область","Угличский муниципальный район","78646000","Улейминское сельское поселение","78646480","26901857","АО \"РЭУ\"","7714783092","332743001","производство (некомбинированная выработка)+передача+сбыт","WARM"]
[367,"Ярославская область","Угличский муниципальный район","78646000","Улейминское сельское поселение","78646480","26569087","АО \"Ярославская генерирующая компания\"","7604178769","760601001","производство (некомбинированная выработка)+передача+сбыт","WARM"]
[368,"Ярославская область","Угличский муниципальный район","78646000","Улейминское сельское поселение","78646480","28932227","ООО \"Газпром теплоэнерго Ярославль\"","7603060690","760301001","производство (некомбинированная выработка)+передача+сбыт","WARM"]
[369,"Ярославская область","Ярославский муниципальный район","78650000","Ивняковское сельское поселение","78650455","26901857","АО \"РЭУ\"","7714783092","332743001","производство (некомбинированная выработка)+передача+сбыт","WARM"]
[370,"Ярославская область","Ярославский муниципальный район","78650000","Ивняковское сельское поселение","78650455","28507030","АО \"Яркоммунсервис\"","7602090950","760201001","производство (некомбинированная выработка)+передача+сбыт","WARM"]
[371,"Ярославская область","Ярославский муниципальный район","78650000","Ивняковское сельское поселение","78650455","26483498","ГУП ЖКХ ЯО \"Яркоммунсервис\"","7604004508","760401001","производство (некомбинированная выработка)+передача+сбыт","WARM"]
[372,"Ярославская область","Ярославский муниципальный район","78650000","Ивняковское сельское поселение","78650455","27712950","ОАО \"Яркоммунсервис\"","7604016214","760401001","производство (некомбинированная выработка)+передача+сбыт","WARM"]
[373,"Ярославская область","Ярославский муниципальный район","78650000","Карабихское сельское поселение","78650430","26901857","АО \"РЭУ\"","7714783092","332743001","производство (некомбинированная выработка)+передача+сбыт","WARM"]
[374,"Ярославская область","Ярославский муниципальный район","78650000","Карабихское сельское поселение","78650430","28254087","ООО \"БизнесПродуктГрупп\"","7708579934","772301001","производство (некомбинированная выработка)+передача+сбыт","WARM"]
[375,"Ярославская область","Ярославский муниципальный район","78650000","Карабихское сельское поселение","78650430","26483447","Филиал ООО \"Транснефть-Балтика\"-Ярославское районное нефтепроводное управление","4704041900","762702001","производство (некомбинированная выработка)+передача","WARM"]
[376,"Ярославская область","Ярославский муниципальный район","78650000","Карабихское сельское поселение","78650430","26483447","Филиал ООО \"Транснефть-Балтика\"-Ярославское районное нефтепроводное управление","4704041900","762702001","производство (некомбинированная выработка)+передача+сбыт","WARM"]
[377,"Ярославская область","Ярославский муниципальный район","78650000","Кузнечихинское сельское поселение","78650435","27568785","ООО \"Муниципальные коммунальные системы\"","7627036930","762701001","производство (некомбинированная выработка)+передача+сбыт","WARM"]
[378,"Ярославская область","Ярославский муниципальный район","78650000","Туношенское сельское поселение","78650495","26901857","АО \"РЭУ\"","7714783092","332743001","производство (некомбинированная выработка)+передача+сбыт","WARM"]
[379,"Ярославская область","Ярославский муниципальный район","78650000","Туношенское сельское поселение","78650495","28507030","АО \"Яркоммунсервис\"","7602090950","760201001","производство (некомбинированная выработка)+передача+сбыт","WARM"]
[380,"Ярославская область","Ярославский муниципальный район","78650000","Туношенское сельское поселение","78650495","26483498","ГУП ЖКХ ЯО \"Яркоммунсервис\"","7604004508","760401001","производство (некомбинированная выработка)+передача+сбыт","WARM"]
[381,"Ярославская область","Ярославский муниципальный район","78650000","Туношенское сельское поселение","78650495","27712950","ОАО \"Яркоммунсервис\"","7604016214","760401001","производство (некомбинированная выработка)+передача+сбыт","WARM"]
[382,"Ярославская область","Ярославский муниципальный район","78650000","Туношенское сельское поселение","78650495","26526614","Ярославская дистанция гражданских сооружений, водоснабжения и водоотведения ЯО СЖД-филиала ОАО \"РЖД\"","7708503727","997650007","производство (некомбинированная выработка)+передача+сбыт","WARM"]
[383,"Ярославская область","Ярославский муниципальный район","78650000","Ярославский муниципальный район","78650000","26560525","АО \"ГУ ЖКХ\"","5116000922","511601001","производство (некомбинированная выработка)+сбыт","WARM"]
[384,"Ярославская область","Ярославский муниципальный район","78650000","Ярославский муниципальный район","78650000","28822308","АО \"Малая комплексная энергетика\"","7612043797","760601001","производство (некомбинированная выработка)","WARM"]
[385,"Ярославская область","Ярославский муниципальный район","78650000","Ярославский муниципальный район","78650000","26483276","ГУП ЖКХ ЯО \"Яркоммунсервис\" кот. Туношенского дома для престарелых и инвалидов","7604004508","762732002","производство (некомбинированная выработка)+передача+сбыт","WARM"]
[386,"Ярославская область","Ярославский муниципальный район","78650000","Ярославский муниципальный район","78650000","26483268","ГУП ЖКХ ЯО \"Яркоммунсервис\" с. Спасское (ГУ ЯО ОПБ)","7604004508","762732001","производство (некомбинированная выработка)+передача+сбыт","WARM"]
[387,"Ярославская область","Ярославский муниципальный район","78650000","Ярославский муниципальный район","78650000","26514513","ЗАО \"Пансионат отдыха \"Ярославль\"","7627015577","762701001","производство (некомбинированная выработка)+передача+сбыт","WARM"]
[388,"Ярославская область","Ярославский муниципальный район","78650000","Ярославский муниципальный район","78650000","26483278","ЗАО \"Производственная компания \"Ярославич\"","7627002151","762701001","производство (некомбинированная выработка)+сбыт","WARM"]
[389,"Ярославская область","Ярославский муниципальный район","78650000","Ярославский муниципальный район","78650000","26514525","ОАО \"ЖКХ \"Заволжье\"","7627032974","762701001","производство (некомбинированная выработка)+передача+сбыт","WARM"]
[390,"Ярославская область","Ярославский муниципальный район","78650000","Ярославский муниципальный район","78650000","26483482","ОАО \"Красные Ткачи\"","7627002923","762701001","производство (некомбинированная выработка)+сбыт","WARM"]
[391,"Ярославская область","Ярославский муниципальный район","78650000","Ярославский муниципальный район","78650000","27548439","ОАО \"Санаторий \"Красный Холм\"","7627015619","762701001","производство (некомбинированная выработка)","WARM"]
[392,"Ярославская область","Ярославский муниципальный район","78650000","Ярославский муниципальный район","78650000","26483162","ОАО \"Яргортеплоэнерго\"","7606047507","760601001","производство (некомбинированная выработка)+передача+сбыт","WARM"]
[393,"Ярославская область","Ярославский муниципальный район","78650000","Ярославский муниципальный район","78650000","26483230","ОАО \"Ярославльводоканал\"","7606069518","760601001","производство (некомбинированная выработка)+передача+сбыт","WARM"]
[394,"Ярославская область","Ярославский муниципальный район","78650000","Ярославский муниципальный район","78650000","26526761","ОАО ЖКХ \"Заволжье\" п. Красные Ткачи","7627032974","762701005","Передача","WARM"]
[395,"Ярославская область","Ярославский муниципальный район","78650000","Ярославский муниципальный район","78650000","26526755","ОАО ЖКХ \"Заволжье\" передача Дубки, Ивняки, Щедрино","7627032974","762701002","Передача","WARM"]
[396,"Ярославская область","Ярославский муниципальный район","78650000","Ярославский муниципальный район","78650000","26526757","ОАО ЖКХ \"Заволжье\" передача Лесная Поляна","7627032974","762701003","Передача","WARM"]
[397,"Ярославская область","Ярославский муниципальный район","78650000","Ярославский муниципальный район","78650000","26526759","ОАО ЖКХ \"Заволжье\" передача п. Красный Бор","7627032974","762701004","Передача","WARM"]
[398,"Ярославская область","Ярославский муниципальный район","78650000","Ярославский муниципальный район","78650000","27568785","ООО \"Муниципальные коммунальные системы\"","7627036930","762701001","производство (некомбинированная выработка)+передача+сбыт","WARM"]
[399,"Ярославская область","Ярославский муниципальный район","78650000","Ярославский муниципальный район","78650000","26483280","ООО \"Санаторий - профилакторий \"Ярославнефтеоргсинтез\"","7627025663","762701001","производство (некомбинированная выработка)+передача+сбыт","WARM"]
[400,"Ярославская область","Ярославский муниципальный район","78650000","Ярославский муниципальный район","78650000","26483266","ФГУП \"Григорьевское\"","7627000901","762701001","производство (некомбинированная выработка)+передача+сбыт","WARM"]
[401,"Ярославская область","Ярославский муниципальный район","78650000","Ярославский муниципальный район","78650000","26651555","Ярославская дистанция гражданских сооружений, водоснабжения и водоотведения ЯО СЖД- филиала ОАО \"РЖД\" кот. ст. Лютово","7708503727","997650009","производство (некомбинированная выработка)+передача+сбыт","WARM"]
[402,"Ярославская область","город Переславль-Залесский","78705000","город Переславль-Залесский","78705000","26560525","АО \"ГУ ЖКХ\"","5116000922","511601001","производство (некомбинированная выработка)+передача+сбыт","WARM"]
[403,"Ярославская область","город Переславль-Залесский","78705000","город Переславль-Залесский","78705000","26560525","АО \"ГУ ЖКХ\"","5116000922","511601001","производство (некомбинированная выработка)+сбыт","WARM"]
[404,"Ярославская область","город Переславль-Залесский","78705000","город Переславль-Залесский","78705000","26901857","АО \"РЭУ\"","7714783092","332743001","производство (некомбинированная выработка)+передача+сбыт","WARM"]
[405,"Ярославская область","город Переславль-Залесский","78705000","город Переславль-Залесский","78705000","26483153","ЗАО \"Новый мир\"","7608001240","760801001","производство (некомбинированная выработка)+передача+сбыт","WARM"]
[406,"Ярославская область","город Переславль-Залесский","78705000","город Переславль-Залесский","78705000","26483622","МУП \"Спектр\"","7608011873","760801001","Теплоноситель - Сбыт :: Производство :: Передача","WARM"]
[407,"Ярославская область","город Переславль-Залесский","78705000","город Переславль-Залесский","78705000","26483622","МУП \"Спектр\"","7608011873","760801001","производство (некомбинированная выработка)+передача+сбыт","WARM"]
[408,"Ярославская область","город Переславль-Залесский","78705000","город Переславль-Залесский","78705000","26785009","МУП \"Энергетик\"","7608010100","760801002","Передача+Сбыт","WARM"]
[409,"Ярославская область","город Переславль-Залесский","78705000","город Переславль-Залесский","78705000","26785009","МУП \"Энергетик\"","7608010100","760801002","производство (некомбинированная выработка)+передача+сбыт","WARM"]
[410,"Ярославская область","город Переславль-Залесский","78705000","город Переславль-Залесский","78705000","26785009","МУП \"Энергетик\"","7608010100","760801002","производство комбинированная выработка","WARM"]
[411,"Ярославская область","город Переславль-Залесский","78705000","город Переславль-Залесский","78705000","26525350","МУП \"Энергетик\" котельные","7608010100","760801001","производство (некомбинированная выработка)+передача+сбыт","WARM"]
[412,"Ярославская область","город Переславль-Залесский","78705000","город Переславль-Залесский","78705000","26785025","МУП \"Энергетик\" передача от ООО \"МЭС\" п.Чкаловский","7608010100","760801006","Передача","WARM"]
[413,"Ярославская область","город Переславль-Залесский","78705000","город Переславль-Залесский","78705000","26649427","ООО \"Муниципальные энергетические системы\"","7727575942","760801001","производство (некомбинированная выработка)+передача+сбыт","WARM"]
[414,"Ярославская область","город Переславль-Залесский","78705000","город Переславль-Залесский","78705000","28505423","ООО \"Переславская энергетическая компания\"","7608010870","645001001","производство (некомбинированная выработка)+передача+сбыт","WARM"]
[415,"Ярославская область","город Переславль-Залесский","78705000","город Переславль-Залесский","78705000","26524537","ООО \"Переславский технопарк\"","7608012203","760801001","производство (некомбинированная выработка)+передача+сбыт","WARM"]
[416,"Ярославская область","город Переславль-Залесский","78705000","город Переславль-Залесский","78705000","26525354","Переславское линейно-производственное управление магистральных газопроводов ООО \"Газпром трансгаз Ухта\"","1102024468","762232002","производство (некомбинированная выработка)+передача+сбыт","WARM"]
[417,"Ярославская область","город Переславль-Залесский","78705000","город Переславль-Залесский","78705000","26923665","Переславское линейно-производственное управление магистральных газопроводов ООО \"Газпром трансгаз Ухта\"","1102024468","762232002","производство (некомбинированная выработка)+передача+сбыт","WARM"]
[418,"Ярославская область","город Рыбинск","78715000","город Рыбинск","78715000","26483393","АО \"Воентелеком\"","7718766718","761043001","производство (некомбинированная выработка)+сбыт","WARM"]
[419,"Ярославская область","город Рыбинск","78715000","город Рыбинск","78715000","26560525","АО \"ГУ ЖКХ\"","5116000922","511601001","производство (некомбинированная выработка)+передача+сбыт","WARM"]
[420,"Ярославская область","город Рыбинск","78715000","город Рыбинск","78715000","26560525","АО \"ГУ ЖКХ\"","5116000922","511601001","производство (некомбинированная выработка)+сбыт","WARM"]
[421,"Ярославская область","город Рыбинск","78715000","город Рыбинск","78715000","28135188","АО \"Газпромнефть-Терминал\"","5406724282","540601001","производство (некомбинированная выработка)+передача+сбыт","WARM"]
[422,"Ярославская область","город Рыбинск","78715000","город Рыбинск","78715000","26483401","АО \"Рыбинский завод приборостроения\"","7610062970","761001001","производство (некомбинированная выработка)+передача","WARM"]
[423,"Ярославская область","город Рыбинск","78715000","город Рыбинск","78715000","26483369","МУП ГО г. Рыбинска \"Водоканал\"","7610012391","761001001","производство (некомбинированная выработка)+передача+сбыт","WARM"]
[424,"Ярославская область","город Рыбинск","78715000","город Рыбинск","78715000","26483373","МУП ГО г.Рыбинск \"Теплоэнерго\"","7610044403","761001001","производство (некомбинированная выработка)+передача+сбыт","WARM"]
[425,"Ярославская область","город Рыбинск","78715000","город Рыбинск","78715000","26483304","МУП РМР ЯО \"Коммунальные системы\"","7610074824","761001001","Передача","WARM"]
[426,"Ярославская область","город Рыбинск","78715000","город Рыбинск","78715000","26483377","ОАО \"НПО \"Сатурн\"","7610052644","761001001","производство комбинированная выработка","WARM"]
[427,"Ярославская область","город Рыбинск","78715000","город Рыбинск","78715000","26483395","ОАО \"Раскат\"","7610002851","761001001","производство (некомбинированная выработка)+передача+сбыт","WARM"]
[428,"Ярославская область","город Рыбинск","78715000","город Рыбинск","78715000","26483375","ОАО \"Рыбинскхлеб\"","7610005796","761001001","производство (некомбинированная выработка)+передача+сбыт","WARM"]
[429,"Ярославская область","город Рыбинск","78715000","город Рыбинск","78715000","26483367","ООО \"Крома\"","7610063251","761001001","производство (некомбинированная выработка)+передача+сбыт","WARM"]
[430,"Ярославская область","город Рыбинск","78715000","город Рыбинск","78715000","26525313","ООО \"Мясопродукт\"","7610041709","761001001","производство (некомбинированная выработка)+передача+сбыт","WARM"]
[431,"Ярославская область","город Рыбинск","78715000","город Рыбинск","78715000","26525309","ООО \"Раскат-РОС\"","7610059375","761001002","производство (некомбинированная выработка)+передача+сбыт","WARM"]
[432,"Ярославская область","город Рыбинск","78715000","город Рыбинск","78715000","27965323","ООО \"Рыбинсккабель\"","7610093062","761050001","производство (некомбинированная выработка)+передача+сбыт","WARM"]
[433,"Ярославская область","город Рыбинск","78715000","город Рыбинск","78715000","26483391","ФКУ Следственный изолятор 2 УФСИН по Ярославской области","7610028000","761001001","производство (некомбинированная выработка)+передача+сбыт","WARM"]
[434,"Ярославская область","город Ярославль","78701000","город Ярославль","78701000","26483206","\"Ярославский электровозоремонтный завод\" им. Б.П. Бещева - филиал ОАО \"Желдорреммаш\"","7715729877","760443001","производство (некомбинированная выработка)+передача+сбыт","WARM"]
[435,"Ярославская область","город Ярославль","78701000","город Ярославль","78701000","26560525","АО \"ГУ ЖКХ\"","5116000922","511601001","производство (некомбинированная выработка)+передача+сбыт","WARM"]
[436,"Ярославская область","город Ярославль","78701000","город Ярославль","78701000","26560525","АО \"ГУ ЖКХ\"","5116000922","511601001","производство (некомбинированная выработка)+сбыт","WARM"]
[437,"Ярославская область","город Ярославль","78701000","город Ярославль","78701000","26483200","АО \"Норский керамический завод\"","7602013169","760201001","производство (некомбинированная выработка)+передача+сбыт","WARM"]
[438,"Ярославская область","город Ярославль","78701000","город Ярославль","78701000","26901857","АО \"РЭУ\"","7714783092","332743001","производство (некомбинированная выработка)+передача+сбыт","WARM"]
[439,"Ярославская область","город Ярославль","78701000","город Ярославль","78701000","26483176","АО \"Старк-Ресурс\"","7601001072","760401001","производство (некомбинированная выработка)+передача+сбыт","WARM"]
[440,"Ярославская область","город Ярославль","78701000","город Ярославль","78701000","26483196","АО \"Хром\"","7601001724","760401001","производство (некомбинированная выработка)+передача+сбыт","WARM"]
[441,"Ярославская область","город Ярославль","78701000","город Ярославль","78701000","28507030","АО \"Яркоммунсервис\"","7602090950","760201001","производство (некомбинированная выработка)+передача+сбыт","WARM"]
[442,"Ярославская область","город Ярославль","78701000","город Ярославль","78701000","26569087","АО \"Ярославская генерирующая компания\"","7604178769","760601001","производство (некомбинированная выработка)+передача+сбыт","WARM"]
[443,"Ярославская область","город Ярославль","78701000","город Ярославль","78701000","26483226","ГОУ ВПО \"Ярославское высшее зенитное ракетное училище ПВО (военный институт) МО РФ (передача)","7605011642","760501001","Передача","WARM"]
[444,"Ярославская область","город Ярославль","78701000","город Ярославль","78701000","26483498","ГУП ЖКХ ЯО \"Яркоммунсервис\"","7604004508","760401001","производство (некомбинированная выработка)+передача+сбыт","WARM"]
[445,"Ярославская область","город Ярославль","78701000","город Ярославль","78701000","26483222","ГУП ЖКХ ЯО \"Яркоммунсервис\" кот. Центра дет. и юношеского туризма","7604004508","760332001","производство (некомбинированная выработка)+передача+сбыт","WARM"]
[446,"Ярославская область","город Ярославль","78701000","город Ярославль","78701000","26649207","ГУП ЖКХ ЯО \"Яркоммунсервис\" передача т/э ПСО","7604004508","762132009","Передача","WARM"]
[447,"Ярославская область","город Ярославль","78701000","город Ярославль","78701000","26483170","Главное управление ОАО \"ТГК-2\" по Верхневолжскому региону г. Ярославль","7606053324","760631001","Передача+Сбыт","WARM"]
[448,"Ярославская область","город Ярославль","78701000","город Ярославль","78701000","26483170","Главное управление ОАО \"ТГК-2\" по Верхневолжскому региону г. Ярославль","7606053324","760631001","производство комбинированная выработка","WARM"]
[449,"Ярославская область","город Ярославль","78701000","город Ярославль","78701000","26483190","ЗАО \"Волгаэнергоресурс\"","7602053796","760101001","производство (некомбинированная выработка)+передача+сбыт","WARM"]
[450,"Ярославская область","город Ярославль","78701000","город Ярославль","78701000","26524660","ЗАО \"Железобетон\"","7601000262","760301001","Передача","WARM"]
[451,"Ярославская область","город Ярославль","78701000","город Ярославль","78701000","26525046","ЗАО \"Железобетон\"","7601000262","760201001","Передача","WARM"]
[452,"Ярославская область","город Ярославль","78701000","город Ярославль","78701000","26524656","ЗАО \"Лакокраска-ресурс\"","7602059910","760201001","Передача","WARM"]
[453,"Ярославская область","город Ярославль","78701000","город Ярославль","78701000","28497588","ЗАО \"Центр энергетики МГТУ им. Н.Э. Баумана\"","5248027102","761001001","производство (некомбинированная выработка)+передача","WARM"]
[454,"Ярославская область","город Ярославль","78701000","город Ярославль","78701000","26483202","ЗАО \"Энергосервис\"","7603026805","760301001","производство (некомбинированная выработка)+передача+сбыт","WARM"]
[455,"Ярославская область","город Ярославль","78701000","город Ярославль","78701000","26649314","ЗАО \"Ярославль-Резинотехника\"","7603024491","760301001","производство (некомбинированная выработка)+передача+сбыт","WARM"]
[456,"Ярославская область","город Ярославль","78701000","город Ярославль","78701000","26483188","МУП \"Ремонтно-эксплуатационный участок № 4\"","7603037405","760301001","производство (некомбинированная выработка)","WARM"]
[457,"Ярославская область","город Ярославль","78701000","город Ярославль","78701000","26483228","МУП \"Яргорэнергосбыт\" г. Ярославля","7604088265","760301001","производство (некомбинированная выработка)+передача+сбыт","WARM"]
[458,"Ярославская область","город Ярославль","78701000","город Ярославль","78701000","26524662","НУЗ \"Дорожная больница станции Ярославль ОАО \"РЖД\"","7604068188","760401001","производство (некомбинированная выработка)+передача+сбыт","WARM"]
[459,"Ярославская область","город Ярославль","78701000","город Ярославль","78701000","28068350","ОАО \"Домостроительный комбинат\"","7602056885","760201001","производство (некомбинированная выработка)+передача+сбыт","WARM"]
[460,"Ярославская область","город Ярославль","78701000","город Ярославль","78701000","26514525","ОАО \"ЖКХ \"Заволжье\"","7627032974","762701001","производство (некомбинированная выработка)+передача+сбыт","WARM"]
[461,"Ярославская область","город Ярославль","78701000","город Ярославль","78701000","26524667","ОАО \"Инкомпроект-Инвест\"","7604149662","760401001","производство (некомбинированная выработка)+передача+сбыт","WARM"]
[462,"Ярославская область","город Ярославль","78701000","город Ярославль","78701000","26483184","ОАО \"Компания \"Спектр\"","7609012894","760601001","производство (некомбинированная выработка)+передача+сбыт","WARM"]
[463,"Ярославская область","город Ярославль","78701000","город Ярославль","78701000","26483216","ОАО \"Опытный завод \"Паксистем\"","7602002946","760201001","производство (некомбинированная выработка)+передача+сбыт","WARM"]
[464,"Ярославская область","город Ярославль","78701000","город Ярославль","78701000","26483220","ОАО \"Русские краски\"","7605015012","760501001","производство (некомбинированная выработка)+передача+сбыт","WARM"]
[465,"Ярославская область","город Ярославль","78701000","город Ярославль","78701000","26483375","ОАО \"Рыбинскхлеб\"","7610005796","761001001","производство (некомбинированная выработка)","WARM"]
[466,"Ярославская область","город Ярославль","78701000","город Ярославль","78701000","26523308","ОАО \"ТГК-2\"","7606053324","760601001","Передача+Сбыт","WARM"]
[467,"Ярославская область","город Ярославль","78701000","город Ярославль","78701000","26523308","ОАО \"ТГК-2\"","7606053324","760601001","производство комбинированная выработка","WARM"]
[468,"Ярославская область","город Ярославль","78701000","город Ярославль","78701000","26483192","ОАО \"ТЭСС\"","7603015835","760301001","производство (некомбинированная выработка)+передача+сбыт","WARM"]
[469,"Ярославская область","город Ярославль","78701000","город Ярославль","78701000","27673607","ОАО \"Территориальная генерирующая компания № 2\"","7606053324","760601001","Передача+Сбыт","WARM"]
[470,"Ярославская область","город Ярославль","78701000","город Ярославль","78701000","27673607","ОАО \"Территориальная генерирующая компания № 2\"","7606053324","760601001","производство комбинированная выработка","WARM"]
[471,"Ярославская область","город Ярославль","78701000","город Ярославль","78701000","26483162","ОАО \"Яргортеплоэнерго\"","7606047507","760601001","производство (некомбинированная выработка)","WARM"]
[472,"Ярославская область","город Ярославль","78701000","город Ярославль","78701000","27712950","ОАО \"Яркоммунсервис\"","7604016214","760401001","производство (некомбинированная выработка)+передача+сбыт","WARM"]
[473,"Ярославская область","город Ярославль","78701000","город Ярославль","78701000","26483230","ОАО \"Ярославльводоканал\"","7606069518","760601001","производство (некомбинированная выработка)+передача+сбыт","WARM"]
[474,"Ярославская область","город Ярославль","78701000","город Ярославль","78701000","26483194","ОАО \"Ярославский вагоноремонтный завод \"Ремпутьмаш\"","7603030907","760301001","производство (некомбинированная выработка)+передача+сбыт","WARM"]
[475,"Ярославская область","город Ярославль","78701000","город Ярославль","78701000","27030938","ОАО \"Ярославский завод топливной аппаратуры\"","7601000939","760601001","Передача","WARM"]
[476,"Ярославская область","город Ярославль","78701000","город Ярославль","78701000","26483174","ОАО \"Ярославский комбинат технических тканей \"Красный Перекоп\"","7601001146","760501001","Передача","WARM"]
[477,"Ярославская область","город Ярославль","78701000","город Ярославль","78701000","26483178","ОАО \"Ярославский радиозавод\"","7601000086","760401001","производство (некомбинированная выработка)+передача+сбыт","WARM"]
[478,"Ярославская область","город Ярославль","78701000","город Ярославль","78701000","26811543","ОАО \"Ярославский технический углерод\"","7605000714","760450001","Передача+Сбыт","WARM"]
[479,"Ярославская область","город Ярославль","78701000","город Ярославль","78701000","26811543","ОАО \"Ярославский технический углерод\"","7605000714","760450001","производство (некомбинированная выработка)+передача+сбыт","WARM"]
[480,"Ярославская область","город Ярославль","78701000","город Ярославль","78701000","26811543","ОАО \"Ярославский технический углерод\"","7605000714","760450001","производство комбинированная выработка","WARM"]
[481,"Ярославская область","город Ярославль","78701000","город Ярославль","78701000","28267865","ООО  «Котельная завода «Пролетарская свобода»","7604077129","760401001","производство (некомбинированная выработка)+передача+сбыт","WARM"]
[482,"Ярославская область","город Ярославль","78701000","город Ярославль","78701000","26483198","ООО \"АДС\"","7604008710","760401001","производство (некомбинированная выработка)+передача+сбыт","WARM"]
[483,"Ярославская область","город Ярославль","78701000","город Ярославль","78701000","28932227","ООО \"Газпром теплоэнерго Ярославль\"","7603060690","760301001","производство (некомбинированная выработка)+передача+сбыт","WARM"]
[484,"Ярославская область","город Ярославль","78701000","город Ярославль","78701000","26483214","ООО \"РСК \"ТЭР\"","7606036103","760601001","производство (некомбинированная выработка)+передача+сбыт","WARM"]
[485,"Ярославская область","город Ярославль","78701000","город Ярославль","78701000","27555004","ООО \"Спецторг Плюс\"","7604076460","760401001","производство (некомбинированная выработка)+передача+сбыт","WARM"]
[486,"Ярославская область","город Ярославль","78701000","город Ярославль","78701000","30814222","ООО \"Строительная Компания Сокол\"","7604165544","760201001","производство (некомбинированная выработка)+передача+сбыт","WARM"]
[487,"Ярославская область","город Ярославль","78701000","город Ярославль","78701000","27569416","ООО \"Тепловая энергетическая компания - 1\"","7604188573","760401001","производство (некомбинированная выработка)+передача+сбыт","WARM"]
[488,"Ярославская область","город Ярославль","78701000","город Ярославль","78701000","30373524","ООО \"Теплоресурс\"","7604277921","760401001","производство (некомбинированная выработка)","WARM"]
[489,"Ярославская область","город Ярославль","78701000","город Ярославль","78701000","30796099","ООО \"Теплотехник\"","7604278428","760401001","производство (некомбинированная выработка)","WARM"]
[490,"Ярославская область","город Ярославль","78701000","город Ярославль","78701000","30796099","ООО \"Теплотехник\"","7604278428","760401001","производство (некомбинированная выработка)+передача+сбыт","WARM"]
[491,"Ярославская область","город Ярославль","78701000","город Ярославль","78701000","26483204","ООО \"ТехЭкспо\"","7604122607","760401001","производство (некомбинированная выработка)+передача+сбыт","WARM"]
[492,"Ярославская область","город Ярославль","78701000","город Ярославль","78701000","28507335","ООО \"УПТК \"Топливоподающие системы\"","7603013073","760601001","производство (некомбинированная выработка)+передача+сбыт","WARM"]
[493,"Ярославская область","город Ярославль","78701000","город Ярославль","78701000","28135241","ООО \"Управляющая производственно-торговая компания \"Топливоподающие системы\"","7603013073","760301001","производство (некомбинированная выработка)+передача+сбыт","WARM"]
[494,"Ярославская область","город Ярославль","78701000","город Ярославль","78701000","28453584","ООО \"Хуадянь-Тенинская ТЭЦ\"","7604217961","760401001","производство комбинированная выработка","WARM"]
[495,"Ярославская область","город Ярославль","78701000","город Ярославль","78701000","30373563","ООО \"Центр внедрения возобновляемых источников энергии\"","7602098469","760201001","производство (некомбинированная выработка)","WARM"]
[496,"Ярославская область","город Ярославль","78701000","город Ярославль","78701000","26483210","ООО \"Энергия-1\"","7605005021","760501001","производство (некомбинированная выработка)+передача+сбыт","WARM"]
[497,"Ярославская область","город Ярославль","78701000","город Ярославль","78701000","26483172","ООО \"Энергомаш\"","7603022945","760301001","Передача","WARM"]
[498,"Ярославская область","город Ярославль","78701000","город Ярославль","78701000","26483164","ООО \"Ярославская фабрика валяной обуви\"","7603015433","760301001","производство (некомбинированная выработка)+передача+сбыт","WARM"]
[499,"Ярославская область","город Ярославль","78701000","город Ярославль","78701000","26650304","ПАО \"Ярославский ордена Ленина и ордена Октябрьской революции шинный завод\"","7601001509","760150001","Передача","WARM"]
[500,"Ярославская область","город Ярославль","78701000","город Ярославль","78701000","26449407","Свечинский районный телекоммуникационный узел (РТУ) Кировского филиала ОАО \"Волгателеком\"","5260901817","432832002","производство (некомбинированная выработка)+передача+сбыт","WARM"]
[501,"Ярославская область","город Ярославль","78701000","город Ярославль","78701000","26836275","Северная Дирекция по тепловодоснабжению структурное подразделение Центральной дирекции по тепловодоснабжению - филиала ОАО \"РЖД\"","7708503727","760445028","производство (некомбинированная выработка)","WARM"]
[502,"Ярославская область","город Ярославль","78701000","город Ярославль","78701000","26650317","ФГ КЭУ \"Ярославская КЭЧ\" Министерства обороны РФ","7604002910","760401001","производство (некомбинированная выработка)+передача+сбыт","WARM"]
[503,"Ярославская область","город Ярославль","78701000","город Ярославль","78701000","26483224","ФГУП \"81 Центральная инженерная база\" МО РФ","7604159332","760401001","производство (некомбинированная выработка)+передача+сбыт","WARM"]
[504,"Ярославская область","город Ярославль","78701000","город Ярославль","78701000","28160602","ФКУ Следственный изолятор № 1 УФСИН России по Ярославской области","7607008444","760401001","производство (некомбинированная выработка)","WARM"]
[505,"Ярославская область","город Ярославль","78701000","город Ярославль","78701000","28507308","Филиал в Ярославской и Костромской областях ОАО междугородной и международной электрической связи \"Ростелеком\"","7707049388","760443001","производство (некомбинированная выработка)+передача+сбыт","WARM"]
[506,"Ярославская область","город Ярославль","78701000","город Ярославль","78701000","26649247","Филиал в Ярославской и Костромской областях ОАО междугородной и международной электрической связи \"Ростелеком\"","7707049388","760443003","производство (некомбинированная выработка)+передача+сбыт","WARM"]
[507,"Ярославская область","город Ярославль","78701000","город Ярославль","78701000","26526614","Ярославская дистанция гражданских сооружений, водоснабжения и водоотведения ЯО СЖД-филиала ОАО \"РЖД\"","7708503727","997650007","производство (некомбинированная выработка)+передача+сбыт","WARM"]

{"sheet":"modClassifierValidate","index":20,"n_rows":0,"n_cols":0,"rows_kept":0,"cut":false,"hidden":true,"merged":[]}

{"sheet":"modHyp","index":21,"n_rows":0,"n_cols":0,"rows_kept":0,"cut":false,"hidden":true,"merged":[]}

{"sheet":"modList00","index":22,"n_rows":0,"n_cols":0,"rows_kept":0,"cut":false,"hidden":true,"merged":[]}

{"sheet":"modList01","index":23,"n_rows":0,"n_cols":0,"rows_kept":0,"cut":false,"hidden":true,"merged":[]}

{"sheet":"modList02","index":24,"n_rows":0,"n_cols":0,"rows_kept":0,"cut":false,"hidden":true,"merged":[]}

{"sheet":"modList03","index":25,"n_rows":0,"n_cols":0,"rows_kept":0,"cut":false,"hidden":true,"merged":[]}

{"sheet":"modList04","index":26,"n_rows":0,"n_cols":0,"rows_kept":0,"cut":false,"hidden":true,"merged":[]}

{"sheet":"modfrmDateChoose","index":27,"n_rows":0,"n_cols":0,"rows_kept":0,"cut":false,"hidden":true,"merged":[]}

{"sheet":"modComm","index":28,"n_rows":0,"n_cols":0,"rows_kept":0,"cut":false,"hidden":true,"merged":[]}

{"sheet":"modThisWorkbook","index":29,"n_rows":0,"n_cols":0,"rows_kept":0,"cut":false,"hidden":true,"merged":[]}

{"sheet":"REESTR_MO","index":30,"n_rows":101,"n_cols":4,"rows_kept":101,"cut":false,"hidden":true,"merged":[]}
["№","МР","МО","МО_ОКТМО"]
[1,"Большесельский муниципальный район","Благовещенское сельское поселение","78603411"]
[2,"Большесельский муниципальный район","Большесельский муниципальный район","78603000"]
[3,"Большесельский муниципальный район","Большесельское сельское поселение","78603422"]
[4,"Большесельский муниципальный район","Вареговское сельское поселение","78603427"]
[5,"Борисоглебский муниципальный район","Андреевское сельское поселение","78606422"]
[6,"Борисоглебский муниципальный район","Борисоглебский муниципальный район","78606000"]
[7,"Борисоглебский муниципальный район","Борисоглебское сельское поселение","78606407"]
[8,"Борисоглебский муниципальный район","Вощажниковское сельское поселение","78606410"]
[9,"Борисоглебский муниципальный район","Высоковское сельское поселение","78606415"]
[10,"Борисоглебский муниципальный район","Инальцинское сельское поселение","78606405"]
[11,"Брейтовский муниципальный район","Брейтовский муниципальный район","78609000"]
[12,"Брейтовский муниципальный район","Брейтовское сельское поселение","78609411"]
[13,"Брейтовский муниципальный район","Гореловское сельское поселение","78609422"]
[14,"Брейтовский муниципальный район","Прозоровское сельское поселение","78609433"]
[15,"Гаврилов-Ямский муниципальный район","Великосельское сельское поселение","78612405"]
[16,"Гаврилов-Ямский муниципальный район","Гаврилов-Ямский муниципальный район","78612000"]
[17,"Гаврилов-Ямский муниципальный район","Городское поселение г. Гаврилов-Ям","78612101"]
[18,"Гаврилов-Ямский муниципальный район","Заячье-Холмское сельское поселение","78612477"]
[19,"Гаврилов-Ямский муниципальный район","Митинское сельское поселение","78612450"]
[20,"Гаврилов-Ямский муниципальный район","Шопшинское сельское поселение","78612490"]
[21,"Даниловский муниципальный район","Городское поселение г. Данилов","78615101"]
[22,"Даниловский муниципальный район","Даниловский муниципальный район","78615000"]
[23,"Даниловский муниципальный район","Даниловское сельское поселение","78615435"]
[24,"Даниловский муниципальный район","Дмитриевское сельское поселение","78615420"]
[25,"Даниловский муниципальный район","Середское сельское поселение","78615470"]
[26,"Любимский муниципальный район","Воскресенское сельское поселение","78618405"]
[27,"Любимский муниципальный район","Городское поселение г. Любим","78618101"]
[28,"Любимский муниципальный район","Ермаковское сельское поселение","78618410"]
[29,"Любимский муниципальный район","Любимский муниципальный район","78618000"]
[30,"Любимский муниципальный район","Осецкое сельское поселение","78618433"]
[31,"Мышкинский муниципальный район","Городское поселение г. Мышкин","78621101"]
[32,"Мышкинский муниципальный район","Мышкинский муниципальный район","78621000"]
[33,"Мышкинский муниципальный район","Охотинское сельское поселение","78621430"]
[34,"Мышкинский муниципальный район","Приволжское сельское поселение","78621415"]
[35,"Некоузский муниципальный район","Веретейское сельское поселение","78623404"]
[36,"Некоузский муниципальный район","Волжское сельское поселение","78623406"]
[37,"Некоузский муниципальный район","Некоузский муниципальный район","78623000"]
[38,"Некоузский муниципальный район","Некоузское сельское поселение","78623415"]
[39,"Некоузский муниципальный район","Октябрьское сельское поселение","78623427"]
[40,"Некрасовский муниципальный район","Бурмакино сельское поселение","78626409"]
[41,"Некрасовский муниципальный район","Красный Профинтерн сельское поселение","78626444"]
[42,"Некрасовский муниципальный район","Некрасовский муниципальный район","78626000"]
[43,"Некрасовский муниципальный район","Некрасовское сельское поселение","78626457"]
[44,"Первомайский муниципальный район","Городское поселение п.Пречистое","78629151"]
[45,"Первомайский муниципальный район","Кукобойское сельское поселение","78629435"]
[46,"Первомайский муниципальный район","Первомайский муниципальный район","78629000"]
[47,"Первомайский муниципальный район","Пречистенское сельское поселение","78629450"]
[48,"Переславский муниципальный район","Нагорьевское сельское поселение","78632452"]
[49,"Переславский муниципальный район","Переславский муниципальный район","78632000"]
[50,"Переславский муниципальный район","Пригородное сельское поселение","78632455"]
[51,"Переславский муниципальный район","Рязанцевское сельское поселение","78632468"]
[52,"Пошехонский муниципальный район","Белосельское сельское поселение","78634404"]
[53,"Пошехонский муниципальный район","Городское поселение Пошехонье","78634101"]
[54,"Пошехонский муниципальный район","Ермаковское сельское поселение","78634428"]
[55,"Пошехонский муниципальный район","Кременевское сельское поселение","78634460"]
[56,"Пошехонский муниципальный район","Пошехонский муниципальный район","78634000"]
[57,"Пошехонский муниципальный район","Пригородное сельское поселение","78634436"]
[58,"Ростовский муниципальный район","Городское поселение г.Ростов","78637101"]
[59,"Ростовский муниципальный район","Ишня сельское поселение","78637412"]
[60,"Ростовский муниципальный район","Петровское сельское поселение","78637441"]
[61,"Ростовский муниципальный район","Поречье-Рыбное сельское поселение","78637442"]
[62,"Ростовский муниципальный район","Ростовский муниципальный район","78637000"]
[63,"Ростовский муниципальный район","Семибратово сельское поселение","78637447"]
[64,"Рыбинский муниципальный район","Арефинское сельское поселение","78640410"]
[65,"Рыбинский муниципальный район","Волжское сельское поселение","78640415"]
[66,"Рыбинский муниципальный район","Глебовское сельское поселение","78640443"]
[67,"Рыбинский муниципальный район","Городское поселение Песочное","78640455"]
[68,"Рыбинский муниципальный район","Каменниковское сельское поселение","78640425"]
[69,"Рыбинский муниципальный район","Назаровское сельское поселение","78640430"]
[70,"Рыбинский муниципальный район","Огарковское сельское поселение","78640440"]
[71,"Рыбинский муниципальный район","Октябрьское сельское поселение","78640420"]
[72,"Рыбинский муниципальный район","Покровское сельское поселение","78640435"]
[73,"Рыбинский муниципальный район","Рыбинский муниципальный район","78640000"]
[74,"Рыбинский муниципальный район","Судоверфское сельское поселение","78640452"]
[75,"Рыбинский муниципальный район","Тихменевское сельское поселение","78640447"]
[76,"Тутаевский муниципальный район","Артемьевское сельское поселение","78643405"]
[77,"Тутаевский муниципальный район","Городское поселение г.Тутаев","78643101"]
[78,"Тутаевский муниципальный район","Константиновское сельское поселение","78643420"]
[79,"Тутаевский муниципальный район","Левобережное сельское поселение","78643460"]
[80,"Тутаевский муниципальный район","Тутаевский муниципальный район","78643000"]
[81,"Тутаевский муниципальный район","Чебаковское сельское поселение","78643450"]
[82,"Угличский муниципальный район","Головинское сельское поселение","78646440"]
[83,"Угличский муниципальный район","Городское поселение г.Углич","78646101"]
[84,"Угличский муниципальный район","Ильинское сельское поселение","78646420"]
[85,"Угличский муниципальный район","Отрадновское сельское поселение","78646475"]
[86,"Угличский муниципальный район","Слободское сельское поселение","78646410"]
[87,"Угличский муниципальный район","Угличский муниципальный район","78646000"]
[88,"Угличский муниципальный район","Улейминское сельское поселение","78646480"]
[89,"Ярославский муниципальный район","Городское поселение п. Лесная Поляна","78650155"]
[90,"Ярославский муниципальный район","Заволжское сельское поселение","78650410"]
[91,"Ярославский муниципальный район","Ивняковское сельское поселение","78650455"]
[92,"Ярославский муниципальный район","Карабихское сельское поселение","78650430"]
[93,"Ярославский муниципальный район","Кузнечихинское сельское поселение","78650435"]
[94,"Ярославский муниципальный район","Курбское сельское поселение","78650440"]
[95,"Ярославский муниципальный район","Некрасовское сельское поселение","78650470"]
[96,"Ярославский муниципальный район","Туношенское сельское поселение","78650495"]
[97,"Ярославский муниципальный район","Ярославский муниципальный район","78650000"]
[98,"город Переславль-Залесский","город Переславль-Залесский","78705000"]
[99,"город Рыбинск","город Рыбинск","78715000"]
[100,"город Ярославль","город Ярославль","78701000"]

{"sheet":"modfrmReestrMR","index":31,"n_rows":0,"n_cols":0,"rows_kept":0,"cut":false,"hidden":true,"merged":[]}

{"sheet":"modfrmRegion","index":32,"n_rows":0,"n_cols":0,"rows_kept":0,"cut":false,"hidden":true,"merged":[]}

{"sheet":"modfrmCheckUpdates","index":33,"n_rows":0,"n_cols":0,"rows_kept":0,"cut":false,"hidden":true,"merged":[]}